{"text_format":"3","workbook":"xlsx","n_sheets":6,"sheets":["8 кл с кодом","10 кл с кодом","8 кл с фио преподавателей","10 кл с фио преподавателей","Итог 8 кл","Итог 10 кл"],"not_rendered":{"defined_names":8},"read":"whole","date_system":"1900"}

{"sheet":"8 кл с кодом","index":0,"n_rows":61,"n_cols":7,"rows_kept":61,"merged":[[0,0,0,6]]}
["Список участников для устного тура"]
["№ п/п","Страна, регион","Ф.И.О. участника (полностью)","Класс, за который выступает участник","Полное наименование образовательной организации ( по Уставу)","Шифр","Время захода"]
[1,"РФ Пермский край","Габдушева Гузель Илшатовна",8,"МАОУ \"Березниковская СОШ имени М.Г.Имашева\"",1,"09:00:00"]
[2,"Россия, Республика Марий Эл","Семёнова Лиана Олеговна",8,"МБОУ \"Арборская основная общеобразовательная школа\"",3,"09:04:00"]
[3,"РФ Пермский край","Заитов Тимур Эльнарович",8,"МАОУ \"Березниковская СОШ имени М.Г.Имашева\"",4,"09:08:00"]
[4,"Узбекистан","Шарапова Виктория Зокировна",8,"школа №21 города Бухары",5,"09:12:00"]
[5,"Кыргызстан, Бишкек","Муродова Мадина Хуршедовна",8," Средняя школа № 1 имени Чингиза Айтматова",6,"09:16:00"]
[6,"Россия, Республика Башкортостан","Кашапов Риза Ринатович",8,"Муниципальное бюджетное общеобразовательное учреждение башкирская гимназия имени народного поэта Республики Башкортостан Назара Наджми города Дюртюли муниципального района Дюртюлинский район Республики Башкортостан ",7,"09:20:00"]
[7,"РФ Пермский край","Тюлькин Данил Рустамович",8,"МАОУ \"Бардымская гимназия имени Г.Тукая",8,"09:24:00"]
[8,"РТ, Казань","Усманова Камиля Айратовна",8,"МБОУ \"Гимназия №155 с татарским языком обучения\" Ново-Савиновского района г.Казани",9,"09:28:00"]
[9,"Россия, Тюменская область","Гарипова Нелли Тимуровна",8,"Муниципальное автономное общеобразовательное учреждение Ембаевская средняя общеобразовательная школа имени А. Аширбекова",10,"09:32:00"]
[10,"Россия, Оренбургская область","Назметдинова Вилена Илмировна",8,"Муниципальное бюджетное образовательное учреждение Озерская Средняя общеобразовательная школа",11,"09:36:00"]
[11,"РФ Кировская область","Халиуллин Булат Маратович",8,"Муниципальное казенное общеобразовательное учреждение средняя образовательная школа с. Старый Ирюк",12,"09:40:00"]
[12,"РФ Пермский край","Вахитова Юлия Ильгизаровна",8,"МАОУ \"Бардымская гимназия имени Г.Тукая",13,"09:44:00"]
[13,"Россия, Республика Башкортостан","Баширова Алсу Айдаровна",8,"Муниципальное бюджетное общеобразовательное учреждение башкирская гимназия имени народного поэта Республики Башкортостан Назара Наджми города Дюртюли муниципального района Дюртюлинский район Республики Башкортостан ",14,"09:48:00"]
[14,"Россия, Чувашская республика","Зейнетдинов Азат Радифович ",8,"Муниципальное бюджетное образовательное учреждение \"Долгоостровская средняя общеобразовательная школа\"",15,"09:52:00"]
[15,"Оренбургская область","Жданова Элина Рафаэлевна",8,"МБОУ \"Тат. Каргалинская СОШ\"",16,"09:56:00"]
[16,"Казахстан, Павлодар","Найманбаева Нургуль Саматовна",8,"ГУ \"Средняя общеобразовательная школа № 19 города Павлодара\"",17,"10:00:00"]
[17,"Кыргызстан, Бишкек","Таранова Зульфия Данияровна",8,"Учебно-воспитательный комплекс гимназия № 23 имени Иоганна Гете",18,"10:04:00"]
[18,"Самара","Вагизов Данир Ленарович",8,"МБОУ \"Школа \"Яктылык\" с углубленным изучением отдельных предметов\" городского округа Самара",19,"10:08:00"]
[19,"РТ, Актанышский","Ганеева Эльвира Данисовна",8,"ГАОУ \"Гуманитарная гимназия-интернат для одаренных детей\"Актанышского муниципального района Республики Татарстан",20,"10:12:00"]
[20,"РТ, Актанышский","Усманова Аделя Руслановна",8,"ГАОУ «Гуманитарная гимназия-интернат для одаренных детей» Актанышского муниципального района Республики Татарстан",21,"10:16:00"]
[21,"РТ, Казань","Мухаметзянова Алина Асгатовна",8,"МБОУ «Средняя общеобразовательная школа №167 с углубленным изучением отдельных предметов» Советского района г. Казани",22,"10:20:00"]
[22,"РФ Пермский край","Кадышева Регина Рашатовна",8,"МБОУ \"Бардымская СОШ №2\"",24,"10:24:00"]
[23,"Кыргызстан, Бишкек","Алиева Карина Альгизовна",8,"Учебно - воспитательный комплекс гимназия  № 66 ",25,"10:28:00"]
[24,"РТ, Дрожжановский","Калимуллина Талия Талгатовна ",8,"МБОУ \"Старошаймурзинская средняя общеобразовательная школа\" Дрожжановского муниципального района Республики Татарстан",26,"10:32:00"]
[25,"РТ, Бугульминский","Шигапова Аделина Рамилевна",8,"МБОУ татарской гимназии №14 имени Хади Атласи Бугульминского муниципального района Республики Татарстан",27,"10:36:00"]
[26,"Казахстан, Павлодар","Аушаманова Томирис Рутамовна",8,"ГУ \"Средняя общеобразовательная школа № 19 города Павлодара\"",28,"10:40:00"]
[27,"РТ, Актанышский","Валиева Нафиса Ленисовна",8,"ГАОУ \"Гуманитарная гимназия-интернат для одаренных детей\" Актанышского муниципального района Республики Татарстан",29,"10:44:00"]
[28,"РТ, Нурлатский","Насибуллина Айсылу Алмазовна",8,"МБОУ \"Кульбаево-Марасинская средняя общеобразовательная школа Нурлатского муниципального района Республики Татарстан\"",30,"10:48:00"]
[29,"Россия, Республика Башкортостан","Хайруллин Ильнур Анисович",8,"Муниципальное бюджетное общеобразовательное учреждение башкирская гимназия имени народного поэта Республики Башкортостан Назара Наджми города Дюртюли муниципального района Дюртюлинский район Республики Башкортостан ",31,"10:52:00"]
[30,"Россия, Республика Башкортостан","Уралова Камила Дильшатовна",8,"Муниципальное бюджетное общеобразовательное учреждение башкирская гимназия имени народного поэта Республики Башкортостан Назара Наджми города Дюртюли муниципального района Дюртюлинский район Республики Башкортостан ",32,"10:56:00"]
[31,"Казахстан, Павлодар","Болат Сабина Арманқызы",8,"ГУ \"Средняя общеобразовательная школа № 19 города Павлодара\"",33,"11:00:00"]
[32,"Россия, Башкортостан","Ахметова Рамиля Раилевна",8,"Государственное бюджетное общеобразовательное учреждение Республиканский инженерный лицей-интернат",35,"11:04:00"]
[33,"Россия, Республика Башкортостан","Гильманова Азалия Ильмировна",8,"Муниципальное бюджетное общеобразовательное учреждение башкирская гимназия имени народного поэта Республики Башкортостан Назара Наджми города Дюртюли муниципального района Дюртюлинский район Республики Башкортостан ",36,"11:08:00"]
[34,"РТ, Казань","Камалова Зухра Ниязовна",8,"МБОУ \"Татарская гимназия №2 имени Шигабутдина Марджани при Казанском Федеральном Университете\" Московского района г.Казани",37,"11:12:00"]
[35,"Самара","Саниева Элина Равильевна",8,"МБОУ \"Школа \"Яктылык\" с углубленным изучением отдельных предметов\" городского округа Самара",38,"11:16:00"]
[36,"РФ Пермский край","Юрушбаева Анжела Расимовна",8,"МАОУ \"Березниковская СОШ имени М.Г.Имашева\"",39,"11:20:00"]
[37,"Казахстан, Павлодар","Шайманова Дина Кайрболатовна",8,"ГУ \"Средняя общеобразовательная школа № 19 города Павлодара\"",40,"11:24:00"]
[38,"Россия, Оренбургская область","Исмагилова Альсина Раифовна",8,"Муниципальное бюджетное образовательное учреждение Озерская средняя общеобразовательная школа",42,"11:28:00"]
[39,"Россия, Оренбургская область","Мулдагулова Дильназ Сейлхановна",8,"Муниципальное бюджетное образовательное учреждение Озерская Средняя общеобразовательная школа",43,"11:32:00"]
[40,"Самара","Биксалиева Алия Равильевна",8,"МБОУ \"Школа \"Яктылык\" с углубленным изучением отдельных предметов\" городского округа Самара",44,"11:36:00"]
[41,"Чувашская Республика","Якупова Лейсян Маратовна",8,"МБОУ \"Сугутская СОШ\" Батыревского района Чувашской Республики",45,"11:40:00"]
[42,"Россия, Оренбургская область","Садыкова Фатима Ранилевна",8,"Муниципальное бюджетное образовательное учреждение Озерская Средняя общеобразовательная школа",46,"11:44:00"]
[43,"Казахстан, Павлодар","Зайкен Серікбол Азаматұлы",8,"ГУ \"Средняя общеобразовательная школа № 19 города Павлодара\"",47,"11:48:00"]
[44,"РФ Пермский край","Гусманова Гульназ Фаилевна",8,"МБОУ \"Бардымская СОШ №2\"",48,"11:52:00"]
[45,"Пензенская область","Умярова Линара Рушановна",8,"Муниципальное бюджетное общеобразовательное учреждение средняя общеобразвательная школа села Индерка Сосновобоского района Пензенской области",49,"11:56:00"]
[46,"Казахстан, Павлодар","Сейтқазы Ясмин Құмарбекқызы",8,"ГУ \"Средняя общеобразовательная школа № 19 города Павлодара\"",50,"12:00:00"]
[47,"РТ, Атнинский","Хисматуллина Диляра Даниловна",8,"МБОУ \"Большеатнинская средняя общеобразовательная школа\" Атнинского муниципального района Республики Татарстан",51,"12:04:00"]
[48,"Россия, Республика Башкортостан","Мухаев Шамиль Ильгизович",8,"Муниципальное бюджетное общеобразовательное учреждение башкирская гимназия имени народного поэта Республики Башкортостан Назара Наджми города Дюртюли муниципального района Дюртюлинский район Республики Башкортостан ",53,"12:08:00"]
[49,"Россия, Саратовская область","Бешарова Наиля Ринатовна",8,"МОУ \"Национальная (татарская) гимназия\"",54,"12:12:00"]
[50,"Оренбургская область","Рафиков Расул Рустамович",8,"МБОУ \"Тат. Каргалинская СОШ\"",55,"12:16:00"]
[51,"РФ, Нижегородская область","Абдулхаева Гульназ Шамиловна",8,"Муниципальное общеобразовательное учреждение Красногорская средняя школа",56,"12:20:00"]
[52,"РФ Пермский край","Латыпова Алсу Рафизовна",8,"МАОУ \"Бардымская гимназия имени Г.Тукая",57,"12:24:00"]
[53,"Казахстан, Павлодар","Тлеубердинова Эльвира Муратовна",8,"ГУ \"Средняя общеобразовательная школа № 19 города Павлодара\"",58,"12:28:00"]
[54,"Чувашская Республика","Мердина Евгения Александровна",8,"МБОУ \"Сугутская СОШ\" Батыревского района Чувашской Республики",59,"12:32:00"]
[55,"Россия, Республика Татарстан","Назмиева Лилия Ильхамовна",8,"МБОУ \"Гимназия № 12 с татарским языком обучения имени Ф.Г. Аитовой\"",null,"12:36:00"]
[56,"Россия, Республика Татарстан","Сагдиева Диана Айратовна",8,"МБОУ \"Гимназия № 12 с татарским языком обучения имени Ф.Г. Аитовой\"",null,"12:40:00"]
[57,"Россия, Республика Татарстан","Уденазарова Чулпан Курбановна ",8,"МАОУ \"Гимназия-интернат №4\" Кировского района г.Казани",null,"12:44:00"]
[58,"Россия, Республика Татарстан","Хайруллина Алсу Камилевна",8,"МБОУ \"Гимназия № 12 с татарским языком обучения имени Ф.Г. Аитовой\"",null,"12:48:00"]
[59,"РТ, Казань","Шаймарданов Булат Ильшатович",8,"МАОУ «Лицей-интернат №7» Ново-Савиновского района г.Казани",null,"12:52:00"]

{"sheet":"10 кл с кодом","index":1,"n_rows":75,"n_cols":7,"rows_kept":75,"merged":[[0,0,0,6]]}
["Список участников для устного тура"]
["№ п/п","Страна, регион","Ф.И.О. участника (полностью)","Класс, за который выступает участник","Полное наименование образовательной организации ( по Уставу)","Шифр","Время захода"]
[1,"РТ, Актанышский","Мирзагаянова Эльвина Марселевна",10,"МБОУ «Актанышская средняя общеобразовательная школа №2 с углубленным изучением отдельных предметов» Актанышского муниципального района Республики Татарстан",1,"09:00:00"]
[2,"Россия Омская область","Мухаметшин Айдар Газизович",10,"МБОУ \"Уленкульская средняя общеобразовательная школа имени Героя Советского Союза Мусы Джалиля\"",2,"09:03:30"]
[3,"Оренбургская область","Аитов Риналь Рафаилевич",10,"МБОУ \"Тат. Каргалинская СОШ\"",3,"09:07:00"]
[4,"Россия, Оренбургская область","Зулхузина Алсу Рахимовна",10,"Муниципальное бюджетное образовательное учреждение Озерская средняя общеобразовательная школа",4,"09:10:30"]
[5,"Россия Омская область","Давлетбагина Зарина Газизовна",10,"МБОУ \"Уленкульская средняя общеобразовательная школа имени Героя Советского Союза Мусы Джалиля\"",5,"09:14:00"]
[6,"Россия, Республика Коми ","Шарапова Лиана Сергеевна",10,"Государственное профессиональное образовательное учереждение \"Гимназия искусств при Главе Республики Коми\" имени Ю.А.Спиридонова. ",6,"09:17:30"]
[7,"Россия, Республика Башкортостан","Шарафутдинова Камила Ирековна",10,"МБОУ \"Татарская гимназия №65\" городского округа город Уфа Республики Башкортостан",7,"09:21:00"]
[8,"Россия, Республика Башкортостан","Гизатуллина Азалия Рамилевна",10,"МБОУ \"Татарская гимназия №65\" городского округа город Уфа Республики Башкортостан",8,"09:24:30"]
[9,"Казахстан, Павлодар","Мұқатай Нұрханым",10,"ГУ \"Средняя общеобразовательная школа № 19 города Павлодара\"",9,"09:28:00"]
[10,"Россия, Тюменская область","Мавлюшева Алина Рустамовна ",10,"Муниципальное автономное общеобразовательное учреждение Ембаевская средняя общеобразовательная школа имени А. Аширбекова",10,"09:31:30"]
[11,"Россия, Республинка Башкортостан","Насибуллина Диана Ринатовна",10,"Муниципальное бюджетное общеобразовательное учреждение башкирская гимназия имени народного поэта Республики Башкортостан Назара Наджми  города Дюртюли муниципального района Дюртюлинский район Республики Башкортостан",11,"09:35:00"]
[12,"Узбекистан","Шарапова Ангелина Зокировна",10,"школа №21 города Бухары",12,"09:38:30"]
[13,"РФ, Нижегородская область","Каримова Гульназ Вильмировна",10,"Муниципальное общеобразовательное учреждение Красногорская средняя школа",13,"09:42:00"]
[14,"Россия,Ульяновская область","Джамаева Диляра Ринатовна",10,"Муниципальная бюджетная общеобразовательная  организация- Старокулаткинская средняя школа №2 имени Героя Российской Федерации Ряфагатя  Махмутовича  Хабибуллина",14,"09:45:30"]
[15,"Россия, Оренбургская область","Сайфутдинова Руфина Руслановна",10,"Муниципальное бюджетное образовательное учреждение Озерская Средняя общеобразовательная школа",15,"09:49:00"]
[16,"Узбекистан, Хорезмская область","Эгамберганов Бабурбек Атабек угли",10,"Ургенчский строительно профессиональный колледж",16,"09:52:30"]
[17,"Россия, Республика Мордовия","Леонтьева Юлия Олеговна",10,"Муниципальное бюджетное общеобразовательное учреждение \"Большеигнатовская средняя общеобразовательная школа\" Большеигнатовского муниципального района Республики Мордовия ",17,"09:56:00"]
[18,"Россия,Ульяновская область","Разакова Алсу Иршатовна",10,"Муниципальная бюджетная общеобразовательная  организация- Старокулаткинская средняя школа №2 имени Героя Российской Федерации Ряфагатя  Махмутовича  Хабибуллина",18,"09:59:30"]
[19,"Россия, Свердловская область","Емельянова Элина Сафархановна",10,"Муниципальное бюджетное общеобразовательное учреждение \"Центр образования \"Наследие\"",19,"10:03:00"]
[20,"РФ Пермский край","Утяганова Элина Динаровна",10,"МАОУ \"Бардымская гимназия имени Г.Тукая",20,"10:06:30"]
[21,"Республика Башкортостан","Ямалов Динар Данилович",10,"Муниципальное бюджетное общеобразовательное учреждение средняя общеобразовательная школа села Асяново имени Шайхзады Бабича муниципального района Дюртюлинский район Республики Башкортостан",22,"10:10:00"]
[22,"Россия, Тюменская область ","Алеева Луиза Ильдаровна",10,"Муниципальное автономное общеобразовательное учреждение Андреевская средняя общеобразовательная школа Тюменского муниципального района",23,"10:13:30"]
[23,"Россия,Ульяновская область","Курмаева Анжела Радиковна",10,"Муниципальная бюджетная общеобразовательная  организация- Старокулаткинская средняя школа №2 имени Героя Российской Федерации Ряфагатя  Махмутовича  Хабибуллина",24,"10:17:00"]
[24,"Россия, Свердловская область","Горяева Виолетта Михайловна",10,"Муниципальное бюджетное общеобразовательное учреждение \"Центр образования \"Наследие\"",25,"10:20:30"]
[25,"Чувашская Республика","Егорова Ксения Анатольевна",10,"МБОУ \"Сугутская СОШ\" Батыревского района Чувашской Республики",26,"10:24:00"]
[26,"Россия, Республика Башкортостан","Сагидуллин Радмир Данилевич",10,"МБОУ \"Татарская гимназия №65\" городского округа город Уфа Республики Башкортостан",28,"10:27:30"]
[27,"Чувашская Республика","Скрипкина Анастасия Александровна",10,"МБОУ \"Сугутская СОШ\" Батыревского района Чувашской Республики",29,"10:31:00"]
[28,"Россия, Республика Башкортостан","Седелков Александр Евгеньевич",10,"МБОУ \"Татарская гимназия №65\" городского округа город Уфа Республики Башкортостан",30,"10:34:30"]
[29,"РФ, Нижегородская область","Ахатов Илнур Рафаильевич",10,"Муниципальное общеобразовательное учреждение Красногорская средняя школа",31,"10:38:00"]
[30,"Самара","Таджитдинов Камиль Шавкатович",10,"МБОУ \"Школа \"Яктылык\" с углубленным изучением отдельных предметов\" городского округа Самара",32,"10:41:30"]
[31,"РФ Пермский край","Акзигитова Гульназ Арсеновна",10,"МАОУ \"Березниковская СОШ имени М.Г.Имашева\"",33,"10:45:00"]
[32,"Россия Омская область","Итенякова Луиза Рафиковна",10,"МБОУ \"Уленкульская средняя общеобразовательная школа имени Героя Советского Союза Мусы Джалиля\"",34,"10:48:30"]
[33,"Россия, республика Башкортостан","Кадырова Яна Ильдаровна",10,"Государственное бюджетное образовательное учреждение Республиканский инженерный лицей-интернат",35,"10:52:00"]
[34,"РТ, Казань","Хайруллина Софья Антоновна",10,"МБОУ \"Гимназия №12 с татарским языком обучения имени Ф.Г.Аитовой\" Московского района г.Казани",36,"10:55:30"]
[35,"Россия. Оренбургская область","Тяпкина Регина Геннадьевна",10,"Муниципальное бюджетное общеобразовательное учреждение \"Покровский лицей\"",37,"10:59:00"]
[36,"Россия, республика Башкортостан","Мусагитова Лейсан Фанисовна",10,"Государственное бюджетное образовательное учреждение Республиканский инженерный лицей-интернат",38,"11:02:30"]
[37,"Россия, Республика Коми ","Бутырева Лидия Анатольевна",10,"Государственное профессиональное образовательное учереждение \"Гимназия искусств при Главе Республики Коми\" имени Ю.А.Спиридонова. ",39,"11:06:00"]
[38,"Россия, Республика Башкортостан","Харисова Аделина Тимуровна",10,"МБОУ \"Татарская гимназия №65\" городского округа город Уфа Республики Башкортостан",40,"11:09:30"]
[39,"Россия Ставропольский край","Абдуллаев Рафик Русланович",10,"Муниципальное казенное общеобразовательное учреждение  средняя общеобразовательная школа № 16 аул Малый Барханчак Ипатовского района Ставропольского края",41,"11:13:00"]
[40,"Россия Оренбургская область","Нигматуллина Алина Фагимовна",10,"МБОУ Новосултангуловская СОШ",42,"11:16:30"]
[41,"Республика Башкортостан","Аслямова Лиана Винарисовна",10,"Муниципальное бюджетное общеобразовательное учреждение средняя общеобразовательная школа села Асяново имени Шайхзады Бабича муниципального района Дюртюлинский район Республики Башкортостан",43,"11:20:00"]
[42,"Россия, республика Башкортостан","Мухамадиева Лилия Рамилевна",10,"Государственное бюджетное образовательное учреждение Республиканский инженерный лицей-интернат",44,"11:23:30"]
[43,"РТ, Нижнекамский","Марданов Самат Ришатович",10,"МБОУ «Лицей-интернат №24» Нижнекамского муниципального района Республики Татарстан",45,"11:27:00"]
[44,"Казахстан, Павлодар","Сейтканова Дильназ Акыловна",10,"ГУ \"Средняя общеобразовательная школа № 19 города Павлодара\"",46,"11:30:30"]
[45,"Казахстан, Павлодар","Шарипова Дильназ Ардаковна",10,"ГУ \"Средняя общеобразовательная школа № 19 города Павлодара\"",47,"11:34:00"]
[46,"Россия, Оренбургская область","Мухарямова Регина Фатыховна",10,"Муниципальное бюджетное образовательное учреждение Озерская Средняя общеобразовательная школа",48,"11:37:30"]
[47,"Россия,Ульяновская область","Сайфуллина Альбина Рамилевна",10,"Муниципальная бюджетная общеобразовательная  организация- Старокулаткинская средняя школа №2 имени Героя Российской Федерации Ряфагатя  Махмутовича  Хабибуллина",49,"11:41:00"]
[48,"Россия, Оренбургская область","Шайдулина Диана Васимовна",10,"Муниципальное бюджетное общеобразовательное учреждение \"Асекеевская  средняя общеобразовательная  школа\" Асекеевского района  Оренбургской области",50,"11:44:30"]
[49,"Россия,Ульяновская область","Хабиев Султан Русланович",10,"Муниципальная бюджетная общеобразовательная  организация- Старокулаткинская средняя школа №2 имени Героя Российской Федерации Ряфагатя  Махмутовича  Хабибуллина",51,"11:48:00"]
[50,"Россия,Ульяновская область","Алиева Алсу Дамировна",10,"Муниципальная бюджетная общеобразовательная  организация- Старокулаткинская средняя школа №2 имени Героя Российской Федерации Ряфагатя  Махмутовича  Хабибуллина",55,"11:51:30"]
[51,"РФ, Нижегородская область","Сямиуллина Ляйля Вафиновна",10,"Муниципальное общеобразовательное учреждение Красногорская средняя школа",56,"11:55:00"]
[52,"Республика Башкортостан","Юсупова Айгиза Харисовна",10,"Муниципальное бюджетное общеобразовательное учреждение средняя общеобразовательная школа села Асяново имени Шайхзады Бабича муниципального района Дюртюлинский район Республики Башкортостан",58,"11:58:30"]
[53,"РТ, Казань","Валетова Аделина Юрьевна ",10,"МАОУ \"Гимназия-интернат №4\" Кировского района г.Казани",59,"12:02:00"]
[54,"РТ, Нурлатский","Галимзянова Азиля Фанилевна ",10,"МАОУ «Средняя общеобразовательная школа №4» г.Нурлат Республики Татарстан",61,"12:05:30"]
[55,"Российская Федерация, Удмуртская Республика","Тимкина Валерия Николаевна",10,"МБОУ Игринская СОШ №1",64,"12:09:00"]
[56,"Россия. Оренбургская область","Ермолаева Юлия Алексеевна",10,"Муниципальное бюджетное общеобразовательное учреждение \"Покровский лицей\"",66,"12:12:30"]
[57,"Россия,Ульяновская область","Баширова Ляйсан Мавлетовна",10,"Муниципальная бюджетная общеобразовательная  организация- Старокулаткинская средняя школа №2 имени Героя Российской Федерации Ряфагатя  Махмутовича  Хабибуллина",67,"12:16:00"]
[58,"Россия, Республика Башкортостан","Латыпова Регина Руслановна",10,"МБОУ \"Татарская гимназия №65\" городского округа город Уфа Республики Башкортостан",71,"12:19:30"]
[59,"Кировская область","Зайнуллин Расим Ришатович",10,"муниципальное казенное общеобразователь ное учреждение средняя общеобразователь ная школа с.Старый Ирюк Малмыжского района Кировской области",72,"12:23:00"]
[60,"Россия, Республика Калмыкия","Эрдниева Элистина Алексеевна",10,"МОБУ \"Троицкая гимназия имени Б.Б.Городовикова\"",75,"12:26:30"]
[61,"Азербайджан","Алиева Марьям Джалиль",10,"Средняя школа № 175 имени Ази Асланова ,город Баку",60,"12:30:00"]
[62,"Республика Бурятия","Дондупова Очирма Будаевна",10," Государственное бюджетное общеобразовательное учреждение «Республиканский бурятский национальный лицей-интернат №1»",60,"12:33:30"]
[63,"Россия, Республика Саха (Якутия)","Соломонова Амелия Аркадьевна ",10,"ГБНОУ РС(Я) \"Республиканский лицей - интернат\"",62,"12:37:00"]
[64,"РТ,  Казань","Хабибуллина Дина Радиловна ",10,"МБОУ «Средняя общеобразовательная школа №171 с углубленным изучением отдельных предметов» Советского района г. Казани",62,"12:40:30"]
[65,"Россия, Тюменская область","Таймасова Мадина Рустамовна",10,"Муниципальное автономное общеобразовательное учреждение Ембаевская средняя общеобразовательная школа имени А. Аширбекова",63,"12:44:00"]
[66,"РТ, Актанышский","Шайхразиева Алсу Булатовна",10,"ГАОУ «Гуманитарная гимназия-интернат для одаренных детей» Актанышкого муниципального района Республики Татарстан",63,"12:47:30"]
[67,"Россия, Чувашская республика","Ибетова Дина Амировна",10,"Муниципальное бюджетное образовательное учреждение \"Долгоостровская средняя общеобразовательная школа\"",65,"12:51:00"]
[68,"Россия, Республика Башкортостан","Фазлыева Афина Марселевна",10,"МБОУ \"Татарская гимназия №65\" городского округа город Уфа Республики Башкортостан",65,"12:54:30"]
[69,"Россия, Республика Башкортостан","Валиева Регина Рафилевна",10,"МБОУ \"Татарская гимназия №65\" городского округа город Уфа Республики Башкортостан",68,"12:58:00"]
[70,"Казахстан, Павлодар","Қақабай Әмина",10,"ГУ \"Средняя общеобразовательная школа № 19 города Павлодара\"",68,"13:01:30"]
[71,"Россия, республика Башкортостан","Кудабаева Гульшат Вильдановна",10,"Государственное бюджетное образовательное учреждение Республиканский инженерный лицей-интернат",69,"13:05:00"]
[72,"РТ, Казань","Сибгатуллина Азалия Романовна",10,"МБОУ \"Гимназия №155 с татарским языком обучения\" Ново-Савиновского района г.Казани",69,"13:08:30"]
[73,"Россия, Республика Татарстан","Исмаилова Лилия Рафаэльевна",10,"МАОУ \"Гимназия-интернат №4\" Кировского района г.Казани",null,"13:12:00"]

{"sheet":"8 кл с фио преподавателей","index":2,"n_rows":68,"n_cols":11,"rows_kept":68,"merged":[[0,0,0,10],[60,1,60,2]]}
["Итоговый протокол Международной олимпиады по русскому языку для  учащихся школ с родным (нерусским) языком обучения 8 класс      3-6.06. 2019 г."]
["№ п/п","Страна, регион","Ф.И.О. участника (полностью)","Класс","Полное наименование образовательной организации ( по Уставу)","ФИО преподавателей","ФИО сопровождающих","Устный тур","Письменный тур","Итог","Статус"]
[1,"РТ, Казань","Камалова Зухра Ниязовна",8,"МБОУ \"Татарская гимназия №2 имени Шигабутдина Марджани при Казанском Федеральном Университете\" Московского района г.Казани","Настявина Гульнур Рашитовна",null,33,81,{"$f":"SUM(H3:I3)","v":114},"победитель"]
[2,"РТ, Актанышский","Валиева Нафиса Ленисовна",8,"ГАОУ \"Гуманитарная гимназия-интернат для одаренных детей\" Актанышского муниципального района Республики Татарстан","Шагзамова Энже Фирдависовна","Исламова Лилия Талгатовна",33,64,97,"победитель"]
[3,"РТ, Дрожжановский","Калимуллина Талия Талгатовна ",8,"МБОУ \"Старошаймурзинская средняя общеобразовательная школа\" Дрожжановского муниципального района Республики Татарстан","Ханбикова Лейсан Камиловна","Ханбикова Лейсан Камиловна",28,67,95,"победитель"]
[4,"РТ, Казань","Усманова Камиля Айратовна",8,"МБОУ \"Гимназия №155 с татарским языком обучения\" Ново-Савиновского района г.Казани","Шигапова Лариса Марсовна",null,34,61,95,"призер"]
[5,"Россия, Республика Башкортостан","Баширова Алсу Айдаровна",8,"МБОУ башкирская гимназия имени народного поэта Республики Башкортостан Назара Наджми города Дюртюли муниципального района Дюртюлинский район ","Хайруллина Гузель Ранисовна","Якупова Фаима Галиевна",39,55,94,"призер"]
[6,"РТ, Бугульминский","Шигапова Аделина Рамилевна",8,"МБОУ татарской гимназии №14 имени Хади Атласи Бугульминского муниципального района Республики Татарстан","Сердюкова Наталья Анатольевна","Сердюкова Наталья Анатольевна",20,68,88,"призер"]
[7,"Оренбургская область","Жданова Элина Рафаэлевна",8,"МБОУ \"Тат. Каргалинская средняя общеобразовательная школа\" Сакмарского района Оренбургской области","Якубова Резида Танзиловна","Рафикова Резеда Шамилевна",35,50,85,"призер"]
[8,"РФ Пермский край","Тюлькин Данил Рустамович",8,"МАОУ \"Бардымская гимназия имени Г.Тукая  Бардымского района Пермского края","Киндяшова Альбина Аухатовна","Баширова Альфия Ильдаровна",34,51,85,"призер"]
[9,"Россия, Республика Татарстан","Хайруллина Алсу Камилевна",8,"МБОУ \"Гимназия №12 с татарским языком обучения имени Ф.Г.Аитовой\" Московского района г.Казани","Шагеева Светлана Вячеславовна",null,40,45,85,"призер"]
[10,"Россия, Республика Башкортостан","Кашапов Риза Ринатович",8,"МБОУ башкирская гимназия имени народного поэта Республики Башкортостан Назара Наджми города Дюртюли муниципального района Дюртюлинский район","Хайруллина Гузель Ранисовна","Якупова Фаима Галиевна",39,43,82,"призер"]
[11,"Самара","Биксалиева Алия Равильевна",8,"МБОУ \"Школа \"Яктылык\" с углубленным изучением отдельных предметов\" городского округа Самара","Абдрахимова Магдания Мидхатовна","Махмутова Гульджахан Хайдаровна",39,41,80,"призер"]
[12,"РТ, Казань","Мухаметзянова Алина Асгатовна",8,"МБОУ «Средняя общеобразовательная школа №167 с углубленным изучением отдельных предметов» Советского района г. Казани","Нигматуллина Альбина Сабаховна",null,35,45,80,"призер"]
[13,"Россия, Республика Башкортостан","Мухаев Шамиль Ильгизович",8,"МБОУ башкирская гимназия имени народного поэта Республики Башкортостан Назара Наджми города Дюртюли муниципального района Дюртюлинский район ","Хайруллина Гузель Ранисовна","Якупова Фаима Галиевна",30,49,79,"призер"]
[14,"Россия, Республика Татарстан","Назмиева Лилия Ильхамовна",8,"МБОУ \"Гимназия №12 с татарским языком обучения имени Ф.Г.Аитовой\" Московского района г.Казани","Шагеева Светлана Вячеславовна",null,29,50,79,"призер"]
[15,"Самара","Саниева Элина Равильевна",8,"МБОУ \"Школа \"Яктылык\" с углубленным изучением отдельных предметов\" городского округа Самара","Махмутова Гульджахан Хайдаровна","Махмутова Гульджахан Хайдаровна",37,42,79,"призер"]
[16,"РТ, Актанышский","Усманова Аделя Руслановна",8,"ГАОУ «Гуманитарная гимназия-интернат для одаренных детей» Актанышского муниципального района Республики Татарстан","Шагзамова Энже Фирдависовна","Исламова Лилия Талгатовна",24,54,78,"призер"]
[17,"Россия, Башкортостан","Ахметова Рамиля Раилевна",8,"ГБОУ Республиканский инженерный лицей-интернат г.Уфа Республики Башкортостан","Кульбаева Клара Шайдулловна","Якупова Фаима Галиевна",28,49,77,"призер"]
[18,"Россия, Республика Татарстан","Сагдиева Диана Айратовна",8,"МБОУ \"Гимназия №12 с татарским языком обучения имени Ф.Г.Аитовой\" Московского района г.Казани","Шагеева Светлана Вячеславовна",null,36,41,77,"призер"]
[19,"РТ, Атнинский","Хисматуллина Диляра Даниловна",8,"МБОУ \"Большеатнинская средняя общеобразовательная школа\" Атнинского муниципального района Республики Татарстан","Мингазова Галия Минсалиховна","Гиниятова Сирина Зульфатовна",30,44,74,"призер"]
[20,"РТ, Актанышский","Ганеева Эльвира Данисовна",8,"ГАОУ \"Гуманитарная гимназия-интернат для одаренных детей\" Актанышского муниципального района Республики Татарстан","Саматова Гульнар Дильфасовна","Исламова Лилия Талгатовна",33,40,73,"призер"]
[21,"Казахстан, Павлодар","Сейтқазы Ясмин Құмарбекқызы",8,"ГУ \"Средняя общеобразовательная школа № 19 города Павлодара\" Казахстана","Назымбекова Райхан Аманжоловна","Иванова Венера Альфредовна",31,42,73,"призер"]
[22,"Кыргызстан, Бишкек","Таранова Зульфия Данияровна",8,"Учебно-воспитательный комплекс гимназия № 23 имени Иоганна Гете г. Бишкек Кыргызстана","Васильева Алла Викторовна","Шарафутдинова Нурия Салимовна",27,45,72,"призер"]
[23,"РФ Пермский край","Вахитова Юлия Ильгизаровна",8,"МАОУ \"Бардымская гимназия имени Г.Тукая\" Бардымского района Пермского края","Киндяшова Альбина Аухатовна","Баширова Альфия Ильдаровна",39,32,71,"призер"]
[24,"Россия, Тюменская область","Гарипова Нелли Тимуровна",8,"МАОУ Ембаевская средняя общеобразовательная школа имени А. Аширбекова Тюменской области","Мамикова Динара Хасановна","Губайдуллина Рузанна Альбертовна",28,43,71,"призер"]
[25,"Пензенская область","Умярова Линара Рушановна",8,"МБОУ средняя общеобразвательная школа села Индерка Сосновоборского района Пензенской области","Умярова Венера Каисовна","Умярова Венера Каисовна",30,41,71,"призер"]
[26,"Казахстан, Павлодар","Найманбаева Нургуль Саматовна",8,"ГУ \"Средняя общеобразовательная школа № 19 города Павлодара\" Казахстана","Молдабаева Гульмира Тамирбергеновна","Иванова Венера Альфредовна",33,37,70,"призер"]
[27,"Россия, Оренбургская область","Садыкова Фатима Ранилевна",8,"МБОУ Озерская средняя общеобразовательная школа Илекского района Оренбургской области","Сабитова Розалия Фатхуловна","Назметдинова Элина Рафхатовна",30,39,69]
[28,"Россия, Республика Марий Эл","Семёнова Лиана Олеговна",8,"МБОУ \"Арборская основная общеобразовательная школа\" Мари-Туренского района Республики Марий Эл","Семенова Людмила Николаевна","Семенова Людмила Николаевна",29,40,69,"Победитель в номинации \"Звучащее слово\""]
[29,"РФ, Нижегородская область","Абдулхаева Гульназ Шамиловна",8,"МОУ Красногорская средняя школа Нижегородской области","Зарипова Зульфия Абдулхаковна","Исхакова Альфия Харисовна",34,34,68]
[30,"Россия, Чувашская республика","Зейнетдинов Азат Радифович ",8,"МБОУ \"Долгоостровская средняя общеобразовательная школа\" Чувашской Республики","Черепова Гелсиня Зайдулловна","Черепова Гелсиня Зайдулловна",31,36,67,"Победитель в номинации \"Звучащее слово\""]
[31,"Россия, Оренбургская область","Мулдагулова Дильназ Сейлхановна",8,"МБОУ Озерская средняя общеобразовательная школа Илекского района Оренбургской области","Сабитова Розалия Фатхуловна","Назметдинова Элина Рафхатовна",37,29,66]
[32,"Россия, Республика Башкортостан","Гильманова Азалия Ильмировна",8,"МБОУ башкирская гимназия имени народного поэта Республики Башкортостан Назара Наджми города Дюртюли муниципального района Дюртюлинский район ","Хайруллина Гузель Ранисовна","Якупова Фаима Галиевна",31,34,65]
[33,"РФ Пермский край","Латыпова Алсу Рафизовна",8,"МАОУ \"Бардымская гимназия имени Г.Тукая\"  Бардымского района Пермского края","Киндяшова Альбина Аухатовна","Баширова Альфия Ильдаровна",34,31,{"$f":"SUM(H35:I35)","v":65}]
[34,"Россия, Республика Башкортостан","Уралова Камила Дильшатовна",8,"МБОУ башкирская гимназия имени народного поэта Республики Башкортостан Назара Наджми города Дюртюли муниципального района Дюртюлинский район ","Хайруллина Гузель Ранисовна","Якупова Фаима Галиевна",35,30,65]
[35,"РТ, Нурлатский","Насибуллина Айсылу Алмазовна",8,"МБОУ \"Кульбаево-Марасинская средняя общеобразовательная школа Нурлатского муниципального района Республики Татарстан\"","Хуснутдинова Розалия Гасымовна",null,28,36,64,"победитель в номинации \"Лингвистическое чутье\""]
[36,"Самара","Вагизов Данир Ленарович",8,"МБОУ \"Школа \"Яктылык\" с углубленным изучением отдельных предметов\" городского округа Самара","Абдрахимова Магдания Мидхатовна","Махмутова Гульджахан Хайдаровна",30,33,63]
[37,"Россия, Оренбургская область","Исмагилова Альсина Раифовна",8,"МБОУ Озерская средняя общеобразовательная школа Илекского района Оренбургской области","Сабитова Розалия Фатхуловна","Назметдинова Элина Рафхатовна",25,37,62]
[38,"РФ Пермский край","Кадышева Регина Рашатовна",8,"МБОУ \"Бардымская средняя общеобразовательная школа №2\" Бардымского района Пермского края","Муратова Айсылу Нагимовна","Баширова Альфия Ильдаровна",22,40,62]
[39,"РФ Пермский край","Юрушбаева Анжела Расимовна",8,"МАОУ \"Березниковская средняя общеобразовательная школа имени М.Г.Имашева\" Бардымского района Пермского края","Заитова Эльвира Шаргиновна","Баширова Альфия Ильдаровна",34,28,62]
[40,"Казахстан, Павлодар","Аушаманова Томирис Рутамовна",8,"ГУ \"Средняя общеобразовательная школа № 19 города Павлодара\" Казахстана","Молдабаева Гульмира Тамирбергеновна","Иванова Венера Альфредовна",24,35,59]
[41,"Казахстан, Павлодар","Зайкен Серікбол Азаматұлы",8,"ГУ \"Средняя общеобразовательная школа № 19 города Павлодара\" Казахстана","Назымбекова Райхан Аманжоловна","Иванова Венера Альфредовна",29,29,58]
[42,"Чувашская Республика","Мердина Евгения Александровна",8,"МБОУ \"Сугутская средняя общеобразовательная школа\" Батыревского района Чувашской Республики","Мышова Надежда Вячеславовна","Губайдуллина Ильсияр Ленаровна",25,33,58]
[43,"РФ Кировская область","Халиуллин Булат Маратович",8,"МКОУ средняя общеобразовательная школа с. Старый Ирюк Малмыжского района Кировской области","Галеева Люция Ильдаровна","Зайнуллина Розалия Миняхатовна",20,38,58,"победитель в номинации \"Лингвистическое чутье\""]
[44,"Россия, Саратовская область","Бешарова Наиля Ринатовна",8,"МОУ \"Национальная (татарская) гимназия\" Волжского района г. Саратов","Столбченко Татьяна Викторовна","Столбченко Татьяна Викторовна",30,27,57,"Победитель в номинации \"Познание и творчество\""]
[45,"Узбекистан","Шарапова Виктория Зокировна",8,"Школа №21 города Бухары Узбекистана","Доценко Светлана Николаевна","Шарапова Елена Анваровна",25,32,57,"Победитель в номинации \"Познание и творчество\""]
[46,"Казахстан, Павлодар","Болат Сабина Арманқызы",8,"ГУ \"Средняя общеобразовательная школа № 19 города Павлодара\" Казахстана","Молдабаева Гульмира Тамирбергеновна","Иванова Венера Альфредовна",25,30,55]
[47,"РФ Пермский край","Габдушева Гузель Илшатовна",8,"МАОУ \"Березниковская средняя общеобразовательная школа имени М.Г.Имашева\" Бардымского района Пермского края","Заитова Эльвира Шаргиновна","Баширова Альфия Ильдаровна",16,39,55]
[48,"Казахстан, Павлодар","Шайманова Дина Кайрболатовна",8,"ГУ \"Средняя общеобразовательная школа № 19 города Павлодара\" Казахстана","Молдабаева Гульмира Тамирбергеновна","Иванова Венера Альфредовна",25,29,54]
[49,"Кыргызстан, Бишкек","Алиева Карина Альгизовна",8,"Учебно - воспитательного комплекса гимназии № 66 г.Бишкек Кыргызстана","Сафьянова Алена Григорьевна","Шарафутдинова Нурия Салимовна",28,25,53]
[50,"Россия, Оренбургская область","Назметдинова Вилена Илмировна",8,"МБОУ Озерская средняя общеобразовательная школа Илекского района Оренбургской области","Сабитова Розалия Фатхуловна","Назметдинова Элина Рафхатовна",20,28,48]
[51,"Казахстан, Павлодар","Тлеубердинова Эльвира Муратовна",8,"ГУ \"Средняя общеобразовательная школа № 19 города Павлодара\" Казахстана","Назымбекова Райхан Аманжоловна","Иванова Венера Альфредовна",27,20,47]
[52,"Чувашская Республика","Якупова Лейсян Маратовна",8,"МБОУ \"Сугутская средняя общеобразовательная школа\" Батыревского района Чувашской Республики","Мышова Надежда Вячеславовна","Губайдуллина Ильсияр Ленаровна",33,13,46]
[53,"Кыргызстан, Бишкек","Муродова Мадина Хуршедовна",8,"Средней школы № 1 имени Чингиза Айтматова Кыргызстана","Жанна Мухамедовна","Шарафутдинова Нурия Салимовна",30,12,42]
[54,"РФ Пермский край","Гусманова Гульназ Фаилевна",8,"МБОУ \"Бардымская средняя общеобразовательная школа №2\" Бардымского района Пермского края","Муратова Айсылу Нагимовна","Баширова Альфия Ильдаровна",20,19,39]
[55,"РФ Пермский край","Заитов Тимур Эльнарович",8,"МАОУ \"Березниковская средняя общеобразовательная школа имени М.Г.Имашева\" Бардымского района Пермского края","Заитова Эльвира Шаргиновна","Баширова Альфия Ильдаровна",23,14,37]
[56,"Оренбургская область","Рафиков Расул Рустамович",8,"МБОУ \"Тат. Каргалинская средняя общеобразовательная школа\" Сакмарского района Оренбургской области","Рафикова Резеда Шамилевна","Рафикова Резеда Шамилевна",24,11,35]
[57,"Россия, Республика Башкортостан","Хайруллин Ильнур Анисович",8,"МБОУ башкирская гимназия имени народного поэта Республики Башкортостан Назара Наджми города Дюртюли муниципального района Дюртюлинский район ","Хайруллина Гузель Ранисовна","Якупова Фаима Галиевна",15,12,27]
[]
[null,"Председатель жюри: Юсупова З.Ф."]
[null,"Члены жюри: ","Закирова Р.Ю."]
[null,null,"Корнеева Т.А."]
[null,null,"Новак М.О."]
[null,null,"Нуруллина Г.М."]
[null,null,"Мардиева Л.А."]
[null,null,"Рахимова Д.И."]
[null,null,"Щуклина Т.Ю."]

{"sheet":"10 кл с фио преподавателей","index":3,"n_rows":83,"n_cols":11,"rows_kept":83,"merged":[[0,0,0,10],[75,1,75,2]]}
["Итоговый протокол Международной олимпиады по русскому языку для  учащихся школ с родным (нерусским) языком обучения 10 класс          3-6.06. 2019 г."]
["№ п/п","Страна, регион","Ф.И.О. участника (полностью)","Класс","Полное наименование образовательной организации ( по Уставу)","ФИО преподавателей","ФИО сопровождающих","Устный тур","Письменный тур","Итог","Статус"]
[1,"РТ,  Казань","Хабибуллина Дина Радиловна ",10,"МБОУ «Средняя общеобразовательная школа №171 с углубленным изучением отдельных предметов» Советского района г. Казани","Гафиятуллина Гульназ Альбертовна",null,35,90,{"$f":"SUM(H3:I3)","v":125},"победитель"]
[2,"РТ, Казань","Хайруллина Софья Антоновна",10,"МБОУ \"Гимназия №12 с татарским языком обучения имени Ф.Г.Аитовой\" Московского района г.Казани","Шагеева Светлана Вячеславовна",null,46,66,112,"победитель"]
[3,"Россия, Республинка Башкортостан","Насибуллина Диана Ринатовна",10,"МБОУ башкирская гимназия имени народного поэта Республики Башкортостан Назара Наджми  города Дюртюли муниципального района Дюртюлинский район ","Султанова Гульнур Римовна","Хайруллина Гузель Ранисовна",43,56,99,"победитель"]
[4,"РТ, Нурлатский","Галимзянова Азиля Фанилевна ",10,"МАОУ «Средняя общеобразовательная школа №4» г.Нурлат Республики Татарстан","Лизунова Найля Салимхановна",null,47,50,97,"призер"]
[5,"РТ, Казань","Валетова Аделина Юрьевна ",10,"МАОУ \"Гимназия-интернат №4\" Кировского района г.Казани","Мингазова Лейсан Садыйковна",null,28,63,91,"призер"]
[6,"РТ, Нижнекамский","Марданов Самат Ришатович",10,"МБОУ «Лицей-интернат №24» Нижнекамского муниципального района Республики Татарстан","Вильдеева Татьяна Александровна",null,23,62,85,"призер"]
[7,"Российская Федерация, Удмуртская Республика","Тимкина Валерия Николаевна",10,"МБОУ Игринская средняя общеобразовательная школа №1 Игринского района Удмуртской Республики","Трудолюбова Ангелина Никандровна","Тимкина Оксана Николаевна",35,48,83,"призер"]
[8,"РТ, Актанышский","Шайхразиева Алсу Булатовна",10,"ГАОУ «Гуманитарная гимназия-интернат для одаренных детей» Актанышкого муниципального района Республики Татарстан","Саматова Гульнар Дильфасовна","Исламова Лилия Талгатовна",35,48,83,"призер"]
[9,"Россия, Республика Башкортостан","Валиева Регина Рафилевна",10,"МБОУ \"Татарская гимназия №65\" городского округа город Уфа Республики Башкортостан","Гарифуллина Динара Зуфаровна","Гарифуллина Динара Зуфаровна",38,44,82,"призер"]
[10,"Россия, Республика Татарстан","Исмаилова Лилия Рафаэльевна",10,"МАОУ \"Гимназия-интернат №4\" Кировского района г.Казани","Мингазова Лейсан Садыйковна",null,39,41,80,"призер"]
[11,"Россия, республика Башкортостан","Кудабаева Гульшат Вильдановна",10,"ГБОУ Республиканский инженерный лицей-интернат г. Уфа Республики Башкортостан","Гарифуллина Динара Зуфаровна","Гарифуллина Динара Зуфаровна",34,45,79,"призер"]
[12,"Республика Бурятия","Дондупова Очирма Будаевна",10,"ГБОУ «Республиканский бурятский национальный лицей-интернат №1» Республики Бурятия","Шабаева Татьяна Анатольевна","Шабаева Татьяна Анатольевна",24,54,78,"призер"]
[13,"Россия. Оренбургская область","Тяпкина Регина Геннадьевна",10,"МБОУ \"Покровский лицей\" Оренбургской области","Сираева Диляра Минигариевна","Башкатова Антонина Семеновна",28,48,76,"призер"]
[14,"РФ Пермский край","Утяганова Элина Динаровна",10,"МАОУ \"Бардымская гимназия имени Г.Тукая\" Бардымского района Пермского края","Имайкина Рафига Сайдыхановна","Муратова Айсылу Нагимовна",31,45,76,"призер"]
[15,"Россия, Республика Мордовия","Леонтьева Юлия Олеговна",10,"МБОУ \"Большеигнатовская средняя общеобразовательная школа\" Большеигнатовского муниципального района Республики Мордовия ","Французова Лариса Ивановна","Михайлова Лариса Викторовна",31,44,75,"призер"]
[16,"Республика Башкортостан","Аслямова Лиана Винарисовна",10,"МБОУ средняя общеобразовательная школа села Асяново имени Шайхзады Бабича муниципального района Дюртюлинский район Республики Башкортостан","Салимгареева Галия Фагимовна","Салимгареева Галия Фагимовна",38,36,74,"призер"]
[17,"Россия, Свердловская область","Емельянова Элина Сафархановна",10,"МБОУ \"Центр образования \"Наследие\" Свердловской области","Колосова Лилия Раузитовна","Колосова Лилия Раузитовна",32,42,74,"призер"]
[18,"РТ, Актанышский","Мирзагаянова Эльвина Марселевна",10,"МБОУ «Актанышская средняя общеобразовательная школа №2 с углубленным изучением отдельных предметов» Актанышского муниципального района Республики Татарстан","Белоусова Мавлида Идрисовна","Исламова Лилия Талгатовна",27,46,73,"призер"]
[19,"Оренбургская область","Аитов Риналь Рафаилевич",10,"МБОУ \"Тат. Каргалинская средняя общеобразовательная школа\" Сакмарского района Оренбургской области","Рафикова Резеда Шамилевна","Рафикова Резеда Шамилевна",35,35,70,"призер"]
[20,"Россия, республика Башкортостан","Мусагитова Лейсан Фанисовна",10,"ГБОУ Республиканский инженерный лицей-интернат г. Уфа Республики Башкортостан","Якупова Фаима Галиевна","Якупова Фаима Галиевна",20,50,70,"призер"]
[21,"Россия, Республика Коми ","Шарапова Лиана Сергеевна",10,"ГПОУ \"Гимназия искусств при Главе Республики Коми\" имени Ю.А.Спиридонова ","Нефедова Светлана Михайловна","Чегесова Ольга Олеговна",37,33,70,"призер"]
[22,"Азербайджан","Алиева Марьям Джалиль",10,"Средней школы № 175 имени Ази Асланова города Баку Азербайджана","Инара Амельевна","Алиева Сабина Бениаминовна",43,26,69,"призер"]
[23,"Россия, Оренбургская область","Шайдулина Диана Васимовна",10,"МБОУ \"Асекеевская средняя общеобразовательная  школа\" Асекеевского района  Оренбургской области","Лотфуллина Энзе Раиловна","Лотфуллина Энзе Раиловна",26,42,68,"призер"]
[24,"Россия. Оренбургская область","Ермолаева Юлия Алексеевна",10,"МБОУ \"Покровский лицей\" Оренбургской области","Сираева Диляра Минигариевна","Башкатова Антонина Семеновна",33,34,67,"призер"]
[25,"Республика Башкортостан","Ямалов Динар Данилович",10,"МБОУ средняя общеобразовательная школа села Асяново имени Шайхзады Бабича муниципального района Дюртюлинский район Республики Башкортостан","Салимгареева Галия Фагимовна","Салимгареева Галия Фагимовна",32,33,65,"призер"]
[26,"Республика Башкортостан","Юсупова Айгиза Харисовна",10,"МБОУ средняя общеобразовательная школа села Асяново имени Шайхзады Бабича муниципального района Дюртюлинский район Республики Башкортостан","Салимгареева Галия Фагимовна","Салимгареева Галия Фагимовна",20,44,64,"призер"]
[27,"Россия, Оренбургская область","Мухарямова Регина Фатыховна",10,"МБОУ Озерская средняя общеобразовательная школа Илекского района Оренбургской области","Назметдинова Светлана Валерьевна","Назметдинова Элина Рафхатовна",33,30,63,"призер"]
[28,"Казахстан, Павлодар","Мұқатай Нұрханым",10,"ГУ \"Средняя общеобразовательная школа № 19 города Павлодара\" Казахстана","Мейрханова Айслу Омирзановна","Иванова Венера Альфредовна",35,28,63,"призер"]
[29,"Россия, Республика Башкортостан","Латыпова Регина Руслановна",10,"МБОУ \"Татарская гимназия №65\" городского округа город Уфа Республики Башкортостан","Гарифуллина Динара Зуфаровна","Гарифуллина Динара Зуфаровна",30,32,62,"призер"]
[30,"Россия, Республика Калмыкия","Эрдниева Элистина Алексеевна",10,"МОБУ \"Троицкая гимназия имени Б.Б.Городовикова\" Целинного района Республики Калмыкия","Баланкаева Галина Улановна","Баланкаева Галина Улановна",28,34,62,"призер"]
[31,"Россия, Республика Коми ","Бутырева Лидия Анатольевна",10,"ГПОУ \"Гимназия искусств при Главе Республики Коми\" имени Ю.А.Спиридонова ","Нефедова Светлана Михайловна","Чегесова Ольга Олеговна",23,38,61,"призер"]
[32,"Казахстан, Павлодар","Қақабай Әмина",10,"ГУ \"Средняя общеобразовательная школа № 19 города Павлодара\" Казахстана","Мейрханова Айслу Омирзановна","Иванова Венера Альфредовна",29,32,61,"призер"]
[33,"Россия,Ульяновская область","Курмаева Анжела Радиковна",10,"МБОО - Старокулаткинская средняя школа №2 имени Героя Российской Федерации Ряфагатя Махмутовича Хабибуллина Ульяновской области","Алтынбаева Зульфия Рушановна","Файзуллина Хамдия Рашитовна",31,28,{"$f":"SUM(H35:I35)","v":59},"призер"]
[34,"Россия, Республика Саха (Якутия)","Соломонова Амелия Аркадьевна ",10,"ГБНОУ Республики Саха (Якутия) \"Республиканский лицей - интернат\"","Зоя Петровна","Соломонова Просковья Михайловна",27,32,59,"призер"]
[35,"Россия,Ульяновская область","Хабиев Султан Русланович",10,"МБОО - Старокулаткинская средняя школа №2 имени Героя Российской Федерации Ряфагатя Махмутовича Хабибуллина Ульяновской области","Алтынбаева Зульфия Рушановна","Файзуллина Хамдия Рашитовна",27,31,58]
[36,"Россия, Чувашская республика","Ибетова Дина Амировна",10,"МБОУ \"Долгоостровская средняя общеобразовательная школа\" Чувашской Республики","Черепова Гелсиня Зайдулловна","Черепова Гелсиня Зайдулловна",31,26,57]
[37,"Россия Омская область","Итенякова Луиза Рафиковна",10,"МБОУ \"Уленкульская средняя общеобразовательная школа имени Героя Советского Союза Мусы Джалиля\" Омской области","Гумарова Лейля Мусеевна","Гумарова Лейля Мусеевна",21,36,57,"победитель в номинации \"Лингвистическое чутье\""]
[38,"Россия,Ульяновская область","Разакова Алсу Иршатовна",10,"МБОО - Старокулаткинская средняя школа №2 имени Героя Российской Федерации Ряфагатя Махмутовича Хабибуллина Ульяновской области","Алтынбаева Зульфия Рушановна","Файзуллина Хамдия Рашитовна",26,31,57]
[39,"Россия, Республика Башкортостан","Харисова Аделина Тимуровна",10,"МБОУ \"Татарская гимназия №65\" городского округа город Уфа Республики Башкортостан","Гарифуллина Динара Зуфаровна","Гарифуллина Динара Зуфаровна",19,38,57]
[40,"Россия, Республика Башкортостан","Шарафутдинова Камила Ирековна",10,"МБОУ \"Татарская гимназия №65\" городского округа город Уфа Республики Башкортостан","Гарифуллина Динара Зуфаровна","Гарифуллина Динара Зуфаровна",27,30,57]
[48,"Россия Ставропольский край","Абдуллаев Рафик Русланович",10,"МКОУ средняя общеобразовательная школа № 16 аул Малый Барханчак Ипатовского района Ставропольского края","Ромаева Ильзира Нурмухаметовна","Абдуллаева Гюзель Абдулкадыровна",26,30,56,"Победитель в номинации \"Познание и творчество\""]
[41,"Россия, Республика Башкортостан","Седелков Александр Евгеньевич",10,"МБОУ \"Татарская гимназия №65\" городского округа город Уфа Республики Башкортостан","Гарифуллина Динара Зуфаровна","Гарифуллина Динара Зуфаровна",16,40,56]
[42,"Россия, Тюменская область ","Алеева Луиза Ильдаровна",10,"МАОУ Андреевская средняя общеобразовательная школа Тюменского муниципального района","Ижбулаева Гульшат Рависовна","Губайдуллина Рузанна Альбертовна",27,28,55]
[43,"Россия Омская область","Мухаметшин Айдар Газизович",10,"МБОУ \"Уленкульская средняя общеобразовательная школа имени Героя Советского Союза Мусы Джалиля\"","Гумарова Лейля Мусеевна","Гумарова Лейля Мусеевна",32,23,55]
[44,"Россия, Оренбургская область","Зулхузина Алсу Рахимовна",10,"МБОУ Озерская средняя общеобразовательная школа Илекского района Оренбургской области","Назметдинова Светлана Валерьевна","Назметдинова Элина Рафхатовна",25,29,54]
[45,"Россия Оренбургская область","Нигматуллина Алина Фагимовна",10,"МБОУ \"Новосултангуловская средняя общеобразовательная школа\" \"Асекеевский район\" Оренбургской области","Хафизова Замира Шахмановна","Рафикова Резеда Шамилевна",21,33,54]
[46,"Россия, республика Башкортостан","Кадырова Яна Ильдаровна",10,"ГБОУ Республиканский инженерный лицей-интернат г. Уфа Республики Башкортостан","Якупова Фаима Галиевна","Якупова Фаима Галиевна",16,37,53]
[47,"Россия Омская область","Давлетбагина Зарина Газизовна",10,"МБОУ \"Уленкульская средняя общеобразовательная школа имени Героя Советского Союза Мусы Джалиля\" Омской области","Гумарова Лейля Мусеевна","Гумарова Лейля Мусеевна",28,24,52]
[49,"Россия, республика Башкортостан","Мухамадиева Лилия Рамилевна",10,"ГБОУ Республиканский инженерный лицей-интернат г. Уфа Республики Башкортостан","Якупова Фаима Галиевна","Якупова Фаима Галиевна",18,33,51]
[50,"Россия, Республика Башкортостан","Фазлыева Афина Марселевна",10,"МБОУ \"Татарская гимназия №65\" городского округа город Уфа Республики Башкортостан","Гарифуллина Динара Зуфаровна","Гарифуллина Динара Зуфаровна",21,30,51]
[51,"РФ, Нижегородская область","Каримова Гульназ Вильмировна",10,"МОУ Красногорская средняя школа Нижегородской области","Исхакова Альфия Харисовна","Исхакова Альфия Харисовна",22,28,50]
[52,"Узбекистан, Хорезмская область","Эгамберганов Бабурбек Атабек угли",10,"Ургенчского строительно профессионального колледжа Хорезмской области Узбекистана",null,"Бекберганов Сабирджан Баходир угли",22,28,50,"Победитель в номинации \"Звучащее слово\""]
[53,"Россия, Республика Башкортостан","Сагидуллин Радмир Данилевич",10,"МБОУ \"Татарская гимназия №65\" городского округа город Уфа Республики Башкортостан","Гарифуллина Динара Зуфаровна","Гарифуллина Динара Зуфаровна",21,28,49]
[54,"Казахстан, Павлодар","Сейтканова Дильназ Акыловна",10,"ГУ \"Средняя общеобразовательная школа № 19 города Павлодара\" Казахстана","Шарипова Кымбат Женисовна","Иванова Венера Альфредовна",23,26,49]
[55,"РФ, Нижегородская область","Сямиуллина Ляйля Вафиновна",10,"МОУ Красногорская средняя школа Нижегородской области","Исхакова Альфия Харисовна","Исхакова Альфия Харисовна",22,27,49,"Победитель в номинации \"Звучащее слово\""]
[56,"Узбекистан","Шарапова Ангелина Зокировна",10,"Школа №21 города Бухары Узбекистана","Доценко Светлана Николаевна","Шарапова Елена Анваровна",22,27,49,"Победитель в номинации \"Познание и творчество\""]
[57,"РФ Пермский край","Акзигитова Гульназ Арсеновна",10,"МАОУ \"Березниковская средняя общеобразовательная школа имени М.Г.Имашева\" Бардымского района Пермского края","Баширова Альфия Ильдаровна","Муратова Айсылу Нагимовна",23,25,48]
[58,"Россия, Свердловская область","Горяева Виолетта Михайловна",10,"МБОУ \"Центр образования \"Наследие\" Свердловской области","Колосова Лилия Раузитовна","Колосова Лилия Раузитовна",24,23,47,"победитель в номинации \"Лингвистическое чутье\""]
[59,"Чувашская Республика","Егорова Ксения Анатольевна",10,"МБОУ \"Сугутская средняя общеобразовательная школа\" Батыревского района Чувашской Республики","Губайдуллина Ильсеяр Ленаровна","Губайдуллина Ильсеяр Ленаровна",25,22,47]
[60,"Чувашская Республика","Скрипкина Анастасия Александровна",10,"МБОУ \"Сугутская средняя общеобразовательная школа\" Батыревского района Чувашской Республики","Губайдуллина Ильсеяр Ленаровна","Губайдуллина Ильсеяр Ленаровна",20,27,47]
[61,"Казахстан, Павлодар","Шарипова Дильназ Ардаковна",10,"ГУ \"Средняя общеобразовательная школа № 19 города Павлодара\" Казахстана","Шарипова Кымбат Женисовна","Иванова Венера Альфредовна",24,23,47]
[62,"Россия,Ульяновская область","Алиева Алсу Дамировна",10,"МБОО - Старокулаткинская средняя школа №2 имени Героя Российской Федерации Ряфагатя Махмутовича Хабибуллина Ульяновской области","Алтынбаева Зульфия Рушановна","Файзуллина Хамдия Рашитовна",24,21,45]
[63,"Кировская область","Зайнуллин Расим Ришатович",10,"МКОУ средняя общеобразовательная школа с.Старый Ирюк Малмыжского района Кировской области","Набиуллина Лилия Рафиловна","Зайнуллина Розалия Миняхатовна",26,19,45]
[64,"Россия,Ульяновская область","Баширова Ляйсан Мавлетовна",10,"МБОО - Старокулаткинская средняя школа №2 имени Героя Российской Федерации Ряфагатя Махмутовича Хабибуллина Ульяновской области","Алтынбаева Зульфия Рушановна","Файзуллина Хамдия Рашитовна",23,20,43]
[65,"Россия, Республика Башкортостан","Гизатуллина Азалия Рамилевна",10,"МБОУ \"Татарская гимназия №65\" городского округа город Уфа Республики Башкортостан","Гарифуллина Динара Зуфаровна","Гарифуллина Динара Зуфаровна",18,24,{"$f":"SUM(H67:I67)","v":42}]
[66,"Россия, Тюменская область","Таймасова Мадина Рустамовна",10,"МАОУ Ембаевская средняя общеобразовательная школа имени А. Аширбекова Тюменской области","Плохотниченко Лилия Леонидовна","Губайдуллина Рузанна Альбертовна",22,19,41]
[67,"РФ, Нижегородская область","Ахатов Илнур Рафаильевич",10,"МОУ Красногорская средняя школа Нижегородской области","Исхакова Альфия Харисовна","Исхакова Альфия Харисовна",19,21,40]
[68,"Россия, Оренбургская область","Сайфутдинова Руфина Руслановна",10,"МБОУ Озерская средняя общеобразовательная школа Илекского района Оренбургской области","Назметдинова Светлана Валерьевна","Назметдинова Элина Рафхатовна",17,21,38]
[69,"Самара","Таджитдинов Камиль Шавкатович",10,"МБОУ \"Школа \"Яктылык\" с углубленным изучением отдельных предметов\" городского округа Самара","Махмутова Гульджахан Хайдаровна","Гатауллина Юлия Ринатовна",16,21,37]
[70,"Россия,Ульяновская область","Джамаева Диляра Ринатовна",10,"МБОО - Старокулаткинская средняя школа №2 имени Героя Российской Федерации Ряфагатя Махмутовича Хабибуллина Ульяновской области","Алтынбаева Зульфия Рушановна","Файзуллина Хамдия Рашитовна",16,18,34]
[71,"Россия,Ульяновская область","Сайфуллина Альбина Рамилевна",10,"МБОО - Старокулаткинская средняя школа №2 имени Героя Российской Федерации Ряфагатя Махмутовича Хабибуллина Ульяновской области","Алтынбаева Зульфия Рушановна","Файзуллина Хамдия Рашитовна",15,11,26]
[72,"Россия, Тюменская область","Мавлюшева Алина Рустамовна ",10,"МАОУ Ембаевская средняя общеобразовательная школа имени А. Аширбекова Тюменской области","Плохотниченко Лилия Леонидовна","Губайдуллина Рузанна Альбертовна",20,5,25]
[]
[null,"Председатель жюри: Юсупова З.Ф."]
[null,"Члены жюри: ","Закирова Р.Ю."]
[null,null,"Корнеева Т.А."]
[null,null,"Новак М.О."]
[null,null,"Нуруллина Г.М."]
[null,null,"Мардиева Л.А."]
[null,null,"Рахимова Д.И."]
[null,null,"Щуклина Т.Ю."]

{"sheet":"Итог 8 кл","index":4,"n_rows":68,"n_cols":9,"rows_kept":68,"merged":[[0,0,0,8],[60,1,60,2]]}
["Итоговый протокол Международной олимпиады по русскому языку для  учащихся школ с родным (нерусским) языком обучения 8 класс               3-6.06. 2019 г."]
["№ п/п","Страна, регион","Ф.И.О. участника (полностью)","Класс","Полное наименование образовательной организации ( по Уставу)","ФИО преподавателей","ФИО сопровождающих","Итог","Статус"]
[1,"РТ, Казань","Камалова Зухра Ниязовна",8,"МБОУ \"Татарская гимназия №2 имени Шигабутдина Марджани при Казанском Федеральном Университете\" Московского района г.Казани","Настявина Гульнур Рашитовна",null,114,"победитель"]
[2,"РТ, Актанышский","Валиева Нафиса Ленисовна",8,"ГАОУ \"Гуманитарная гимназия-интернат для одаренных детей\" Актанышского муниципального района Республики Татарстан","Шагзамова Энже Фирдависовна","Исламова Лилия Талгатовна",97,"победитель"]
[3,"РТ, Дрожжановский","Калимуллина Талия Талгатовна ",8,"МБОУ \"Старошаймурзинская средняя общеобразовательная школа\" Дрожжановского муниципального района Республики Татарстан","Ханбикова Лейсан Камиловна","Ханбикова Лейсан Камиловна",95,"победитель"]
[4,"РТ, Казань","Усманова Камиля Айратовна",8,"МБОУ \"Гимназия №155 с татарским языком обучения\" Ново-Савиновского района г.Казани","Шигапова Лариса Марсовна",null,95,"призер"]
[5,"Россия, Республика Башкортостан","Баширова Алсу Айдаровна",8,"МБОУ башкирская гимназия имени народного поэта Республики Башкортостан Назара Наджми города Дюртюли муниципального района Дюртюлинский район ","Хайруллина Гузель Ранисовна","Якупова Фаима Галиевна",94,"призер"]
[6,"РТ, Бугульминский","Шигапова Аделина Рамилевна",8,"МБОУ татарской гимназии №14 имени Хади Атласи Бугульминского муниципального района Республики Татарстан","Сердюкова Наталья Анатольевна","Сердюкова Наталья Анатольевна",88,"призер"]
[7,"Оренбургская область","Жданова Элина Рафаэлевна",8,"МБОУ \"Тат. Каргалинская средняя общеобразовательная школа\" Сакмарского района Оренбургской области","Якубова Резида Танзиловна","Рафикова Резеда Шамилевна",85,"призер"]
[8,"РФ Пермский край","Тюлькин Данил Рустамович",8,"МАОУ \"Бардымская гимназия имени Г.Тукая  Бардымского района Пермского края","Киндяшова Альбина Аухатовна","Баширова Альфия Ильдаровна",85,"призер"]
[9,"Россия, Республика Татарстан","Хайруллина Алсу Камилевна",8,"МБОУ \"Гимназия №12 с татарским языком обучения имени Ф.Г.Аитовой\" Московского района г.Казани","Шагеева Светлана Вячеславовна",null,85,"призер"]
[10,"Россия, Республика Башкортостан","Кашапов Риза Ринатович",8,"МБОУ башкирская гимназия имени народного поэта Республики Башкортостан Назара Наджми города Дюртюли муниципального района Дюртюлинский район","Хайруллина Гузель Ранисовна","Якупова Фаима Галиевна",82,"призер"]
[11,"Самара","Биксалиева Алия Равильевна",8,"МБОУ \"Школа \"Яктылык\" с углубленным изучением отдельных предметов\" городского округа Самара","Абдрахимова Магдания Мидхатовна","Махмутова Гульджахан Хайдаровна",80,"призер"]
[12,"РТ, Казань","Мухаметзянова Алина Асгатовна",8,"МБОУ «Средняя общеобразовательная школа №167 с углубленным изучением отдельных предметов» Советского района г. Казани","Нигматуллина Альбина Сабаховна",null,80,"призер"]
[13,"Россия, Республика Башкортостан","Мухаев Шамиль Ильгизович",8,"МБОУ башкирская гимназия имени народного поэта Республики Башкортостан Назара Наджми города Дюртюли муниципального района Дюртюлинский район ","Хайруллина Гузель Ранисовна","Якупова Фаима Галиевна",79,"призер"]
[14,"Россия, Республика Татарстан","Назмиева Лилия Ильхамовна",8,"МБОУ \"Гимназия №12 с татарским языком обучения имени Ф.Г.Аитовой\" Московского района г.Казани","Шагеева Светлана Вячеславовна",null,79,"призер"]
[15,"Самара","Саниева Элина Равильевна",8,"МБОУ \"Школа \"Яктылык\" с углубленным изучением отдельных предметов\" городского округа Самара","Махмутова Гульджахан Хайдаровна","Махмутова Гульджахан Хайдаровна",79,"призер"]
[16,"РТ, Актанышский","Усманова Аделя Руслановна",8,"ГАОУ «Гуманитарная гимназия-интернат для одаренных детей» Актанышского муниципального района Республики Татарстан","Шагзамова Энже Фирдависовна","Исламова Лилия Талгатовна",78,"призер"]
[17,"Россия, Башкортостан","Ахметова Рамиля Раилевна",8,"ГБОУ Республиканский инженерный лицей-интернат г.Уфа Республики Башкортостан","Кульбаева Клара Шайдулловна","Якупова Фаима Галиевна",77,"призер"]
[18,"Россия, Республика Татарстан","Сагдиева Диана Айратовна",8,"МБОУ \"Гимназия №12 с татарским языком обучения имени Ф.Г.Аитовой\" Московского района г.Казани","Шагеева Светлана Вячеславовна",null,77,"призер"]
[19,"РТ, Атнинский","Хисматуллина Диляра Даниловна",8,"МБОУ \"Большеатнинская средняя общеобразовательная школа\" Атнинского муниципального района Республики Татарстан","Мингазова Галия Минсалиховна","Гиниятова Сирина Зульфатовна",74,"призер"]
[20,"РТ, Актанышский","Ганеева Эльвира Данисовна",8,"ГАОУ \"Гуманитарная гимназия-интернат для одаренных детей\" Актанышского муниципального района Республики Татарстан","Саматова Гульнар Дильфасовна","Исламова Лилия Талгатовна",73,"призер"]
[21,"Казахстан, Павлодар","Сейтқазы Ясмин Құмарбекқызы",8,"ГУ \"Средняя общеобразовательная школа № 19 города Павлодара\" Казахстана","Назымбекова Райхан Аманжоловна","Иванова Венера Альфредовна",73,"призер"]
[22,"Кыргызстан, Бишкек","Таранова Зульфия Данияровна",8,"Учебно-воспитательный комплекс гимназия № 23 имени Иоганна Гете г. Бишкек Кыргызстана","Васильева Алла Викторовна","Шарафутдинова Нурия Салимовна",72,"призер"]
[23,"РФ Пермский край","Вахитова Юлия Ильгизаровна",8,"МАОУ \"Бардымская гимназия имени Г.Тукая\" Бардымского района Пермского края","Киндяшова Альбина Аухатовна","Баширова Альфия Ильдаровна",71,"призер"]
[24,"Россия, Тюменская область","Гарипова Нелли Тимуровна",8,"МАОУ Ембаевская средняя общеобразовательная школа имени А. Аширбекова Тюменской области","Мамикова Динара Хасановна","Губайдуллина Рузанна Альбертовна",71,"призер"]
[25,"Пензенская область","Умярова Линара Рушановна",8,"МБОУ средняя общеобразвательная школа села Индерка Сосновоборского района Пензенской области","Умярова Венера Каисовна","Умярова Венера Каисовна",71,"призер"]
[26,"Казахстан, Павлодар","Найманбаева Нургуль Саматовна",8,"ГУ \"Средняя общеобразовательная школа № 19 города Павлодара\" Казахстана","Молдабаева Гульмира Тамирбергеновна","Иванова Венера Альфредовна",70,"призер"]
[27,"Россия, Оренбургская область","Садыкова Фатима Ранилевна",8,"МБОУ Озерская средняя общеобразовательная школа Илекского района Оренбургской области","Сабитова Розалия Фатхуловна","Назметдинова Элина Рафхатовна",69]
[28,"Россия, Республика Марий Эл","Семёнова Лиана Олеговна",8,"МБОУ \"Арборская основная общеобразовательная школа\" Мари-Туренского района Республики Марий Эл","Семенова Людмила Николаевна","Семенова Людмила Николаевна",69,"Победитель в номинации \"Звучащее слово\""]
[29,"РФ, Нижегородская область","Абдулхаева Гульназ Шамиловна",8,"МОУ Красногорская средняя школа Нижегородской области","Зарипова Зульфия Абдулхаковна","Исхакова Альфия Харисовна",68]
[30,"Россия, Чувашская республика","Зейнетдинов Азат Радифович ",8,"МБОУ \"Долгоостровская средняя общеобразовательная школа\" Чувашской Республики","Черепова Гелсиня Зайдулловна","Черепова Гелсиня Зайдулловна",67,"Победитель в номинации \"Звучащее слово\""]
[31,"Россия, Оренбургская область","Мулдагулова Дильназ Сейлхановна",8,"МБОУ Озерская средняя общеобразовательная школа Илекского района Оренбургской области","Сабитова Розалия Фатхуловна","Назметдинова Элина Рафхатовна",66]
[32,"Россия, Республика Башкортостан","Гильманова Азалия Ильмировна",8,"МБОУ башкирская гимназия имени народного поэта Республики Башкортостан Назара Наджми города Дюртюли муниципального района Дюртюлинский район ","Хайруллина Гузель Ранисовна","Якупова Фаима Галиевна",65]
[33,"РФ Пермский край","Латыпова Алсу Рафизовна",8,"МАОУ \"Бардымская гимназия имени Г.Тукая\"  Бардымского района Пермского края","Киндяшова Альбина Аухатовна","Баширова Альфия Ильдаровна",65]
[34,"Россия, Республика Башкортостан","Уралова Камила Дильшатовна",8,"МБОУ башкирская гимназия имени народного поэта Республики Башкортостан Назара Наджми города Дюртюли муниципального района Дюртюлинский район ","Хайруллина Гузель Ранисовна","Якупова Фаима Галиевна",65]
[35,"РТ, Нурлатский","Насибуллина Айсылу Алмазовна",8,"МБОУ \"Кульбаево-Марасинская средняя общеобразовательная школа Нурлатского муниципального района Республики Татарстан\"","Хуснутдинова Розалия Гасымовна",null,64,"победитель в номинации \"Лингвистическое чутье\""]
[36,"Самара","Вагизов Данир Ленарович",8,"МБОУ \"Школа \"Яктылык\" с углубленным изучением отдельных предметов\" городского округа Самара","Абдрахимова Магдания Мидхатовна","Махмутова Гульджахан Хайдаровна",63]
[37,"Россия, Оренбургская область","Исмагилова Альсина Раифовна",8,"МБОУ Озерская средняя общеобразовательная школа Илекского района Оренбургской области","Сабитова Розалия Фатхуловна","Назметдинова Элина Рафхатовна",62]
[38,"РФ Пермский край","Кадышева Регина Рашатовна",8,"МБОУ \"Бардымская средняя общеобразовательная школа №2\" Бардымского района Пермского края","Муратова Айсылу Нагимовна","Баширова Альфия Ильдаровна",62]
[39,"РФ Пермский край","Юрушбаева Анжела Расимовна",8,"МАОУ \"Березниковская средняя общеобразовательная школа имени М.Г.Имашева\" Бардымского района Пермского края","Заитова Эльвира Шаргиновна","Баширова Альфия Ильдаровна",62]
[40,"Казахстан, Павлодар","Аушаманова Томирис Рутамовна",8,"ГУ \"Средняя общеобразовательная школа № 19 города Павлодара\" Казахстана","Молдабаева Гульмира Тамирбергеновна","Иванова Венера Альфредовна",59]
[41,"Казахстан, Павлодар","Зайкен Серікбол Азаматұлы",8,"ГУ \"Средняя общеобразовательная школа № 19 города Павлодара\" Казахстана","Назымбекова Райхан Аманжоловна","Иванова Венера Альфредовна",58]
[42,"Чувашская Республика","Мердина Евгения Александровна",8,"МБОУ \"Сугутская средняя общеобразовательная школа\" Батыревского района Чувашской Республики","Мышова Надежда Вячеславовна","Губайдуллина Ильсияр Ленаровна",58]
[43,"РФ Кировская область","Халиуллин Булат Маратович",8,"МКОУ средняя общеобразовательная школа с. Старый Ирюк Малмыжского района Кировской области","Галеева Люция Ильдаровна","Зайнуллина Розалия Миняхатовна",58,"победитель в номинации \"Лингвистическое чутье\""]
[44,"Россия, Саратовская область","Бешарова Наиля Ринатовна",8,"МОУ \"Национальная (татарская) гимназия\" Волжского района г. Саратов","Столбченко Татьяна Викторовна","Столбченко Татьяна Викторовна",57,"Победитель в номинации \"Познание и творчество\""]
[45,"Узбекистан","Шарапова Виктория Зокировна",8,"Школа №21 города Бухары Узбекистана","Доценко Светлана Николаевна","Шарапова Елена Анваровна",57,"Победитель в номинации \"Познание и творчество\""]
[46,"Казахстан, Павлодар","Болат Сабина Арманқызы",8,"ГУ \"Средняя общеобразовательная школа № 19 города Павлодара\" Казахстана","Молдабаева Гульмира Тамирбергеновна","Иванова Венера Альфредовна",55]
[47,"РФ Пермский край","Габдушева Гузель Илшатовна",8,"МАОУ \"Березниковская средняя общеобразовательная школа имени М.Г.Имашева\" Бардымского района Пермского края","Заитова Эльвира Шаргиновна","Баширова Альфия Ильдаровна",55]
[48,"Казахстан, Павлодар","Шайманова Дина Кайрболатовна",8,"ГУ \"Средняя общеобразовательная школа № 19 города Павлодара\" Казахстана","Молдабаева Гульмира Тамирбергеновна","Иванова Венера Альфредовна",54]
[49,"Кыргызстан, Бишкек","Алиева Карина Альгизовна",8,"Учебно - воспитательного комплекса гимназии № 66 г.Бишкек Кыргызстана","Сафьянова Алена Григорьевна","Шарафутдинова Нурия Салимовна",53]
[50,"Россия, Оренбургская область","Назметдинова Вилена Илмировна",8,"МБОУ Озерская средняя общеобразовательная школа Илекского района Оренбургской области","Сабитова Розалия Фатхуловна","Назметдинова Элина Рафхатовна",48]
[51,"Казахстан, Павлодар","Тлеубердинова Эльвира Муратовна",8,"ГУ \"Средняя общеобразовательная школа № 19 города Павлодара\" Казахстана","Назымбекова Райхан Аманжоловна","Иванова Венера Альфредовна",47]
[52,"Чувашская Республика","Якупова Лейсян Маратовна",8,"МБОУ \"Сугутская средняя общеобразовательная школа\" Батыревского района Чувашской Республики","Мышова Надежда Вячеславовна","Губайдуллина Ильсияр Ленаровна",46]
[53,"Кыргызстан, Бишкек","Муродова Мадина Хуршедовна",8,"Средней школы № 1 имени Чингиза Айтматова Кыргызстана","Жанна Мухамедовна","Шарафутдинова Нурия Салимовна",42]
[54,"РФ Пермский край","Гусманова Гульназ Фаилевна",8,"МБОУ \"Бардымская средняя общеобразовательная школа №2\" Бардымского района Пермского края","Муратова Айсылу Нагимовна","Баширова Альфия Ильдаровна",39]
[55,"РФ Пермский край","Заитов Тимур Эльнарович",8,"МАОУ \"Березниковская средняя общеобразовательная школа имени М.Г.Имашева\" Бардымского района Пермского края","Заитова Эльвира Шаргиновна","Баширова Альфия Ильдаровна",37]
[56,"Оренбургская область","Рафиков Расул Рустамович",8,"МБОУ \"Тат. Каргалинская средняя общеобразовательная школа\" Сакмарского района Оренбургской области","Рафикова Резеда Шамилевна","Рафикова Резеда Шамилевна",35]
[57,"Россия, Республика Башкортостан","Хайруллин Ильнур Анисович",8,"МБОУ башкирская гимназия имени народного поэта Республики Башкортостан Назара Наджми города Дюртюли муниципального района Дюртюлинский район ","Хайруллина Гузель Ранисовна","Якупова Фаима Галиевна",27]
[]
[null,"Председатель жюри: Юсупова З.Ф."]
[null,"Члены жюри: ","Закирова Р.Ю."]
[null,null,"Корнеева Т.А."]
[null,null,"Новак М.О."]
[null,null,"Нуруллина Г.М."]
[null,null,"Мардиева Л.А."]
[null,null,"Рахимова Д.И."]
[null,null,"Щуклина Т.Ю."]

{"sheet":"Итог 10 кл","index":5,"n_rows":83,"n_cols":9,"rows_kept":83,"merged":[[0,0,0,8],[75,1,75,2]]}
["Итоговый протокол Международной олимпиады по русскому языку для  учащихся школ с родным (нерусским) языком обучения 10 класс          3-6.06. 2019 г."]
["№ п/п","Страна, регион","Ф.И.О. участника (полностью)","Класс","Полное наименование образовательной организации ( по Уставу)","ФИО преподавателей","ФИО сопровождающих","Итог","Статус"]
[1,"РТ,  Казань","Хабибуллина Дина Радиловна ",10,"МБОУ «Средняя общеобразовательная школа №171 с углубленным изучением отдельных предметов» Советского района г. Казани","Гафиятуллина Гульназ Альбертовна",null,125,"победитель"]
[2,"РТ, Казань","Хайруллина Софья Антоновна",10,"МБОУ \"Гимназия №12 с татарским языком обучения имени Ф.Г.Аитовой\" Московского района г.Казани","Шагеева Светлана Вячеславовна",null,112,"победитель"]
[3,"Россия, Республинка Башкортостан","Насибуллина Диана Ринатовна",10,"МБОУ башкирская гимназия имени народного поэта Республики Башкортостан Назара Наджми  города Дюртюли муниципального района Дюртюлинский район ","Султанова Гульнур Римовна","Хайруллина Гузель Ранисовна",99,"победитель"]
[4,"РТ, Нурлатский","Галимзянова Азиля Фанилевна ",10,"МАОУ «Средняя общеобразовательная школа №4» г.Нурлат Республики Татарстан","Лизунова Найля Салимхановна",null,97,"призер"]
[5,"РТ, Казань","Валетова Аделина Юрьевна ",10,"МАОУ \"Гимназия-интернат №4\" Кировского района г.Казани","Мингазова Лейсан Садыйковна",null,91,"призер"]
[6,"РТ, Нижнекамский","Марданов Самат Ришатович",10,"МБОУ «Лицей-интернат №24» Нижнекамского муниципального района Республики Татарстан","Вильдеева Татьяна Александровна",null,85,"призер"]
[7,"Российская Федерация, Удмуртская Республика","Тимкина Валерия Николаевна",10,"МБОУ Игринская средняя общеобразовательная школа №1 Игринского района Удмуртской Республики","Трудолюбова Ангелина Никандровна","Тимкина Оксана Николаевна",83,"призер"]
[8,"РТ, Актанышский","Шайхразиева Алсу Булатовна",10,"ГАОУ «Гуманитарная гимназия-интернат для одаренных детей» Актанышкого муниципального района Республики Татарстан","Саматова Гульнар Дильфасовна","Исламова Лилия Талгатовна",83,"призер"]
[9,"Россия, Республика Башкортостан","Валиева Регина Рафилевна",10,"МБОУ \"Татарская гимназия №65\" городского округа город Уфа Республики Башкортостан","Гарифуллина Динара Зуфаровна","Гарифуллина Динара Зуфаровна",82,"призер"]
[10,"Россия, Республика Татарстан","Исмаилова Лилия Рафаэльевна",10,"МАОУ \"Гимназия-интернат №4\" Кировского района г.Казани","Мингазова Лейсан Садыйковна",null,80,"призер"]
[11,"Россия, республика Башкортостан","Кудабаева Гульшат Вильдановна",10,"ГБОУ Республиканский инженерный лицей-интернат г. Уфа Республики Башкортостан","Гарифуллина Динара Зуфаровна","Гарифуллина Динара Зуфаровна",79,"призер"]
[12,"Республика Бурятия","Дондупова Очирма Будаевна",10,"ГБОУ «Республиканский бурятский национальный лицей-интернат №1» Республики Бурятия","Шабаева Татьяна Анатольевна","Шабаева Татьяна Анатольевна",78,"призер"]
[13,"Россия. Оренбургская область","Тяпкина Регина Геннадьевна",10,"МБОУ \"Покровский лицей\" Оренбургской области","Сираева Диляра Минигариевна","Башкатова Антонина Семеновна",76,"призер"]
[14,"РФ Пермский край","Утяганова Элина Динаровна",10,"МАОУ \"Бардымская гимназия имени Г.Тукая\" Бардымского района Пермского края","Имайкина Рафига Сайдыхановна","Муратова Айсылу Нагимовна",76,"призер"]
[15,"Россия, Республика Мордовия","Леонтьева Юлия Олеговна",10,"МБОУ \"Большеигнатовская средняя общеобразовательная школа\" Большеигнатовского муниципального района Республики Мордовия ","Французова Лариса Ивановна","Михайлова Лариса Викторовна",75,"призер"]
[16,"Республика Башкортостан","Аслямова Лиана Винарисовна",10,"МБОУ средняя общеобразовательная школа села Асяново имени Шайхзады Бабича муниципального района Дюртюлинский район Республики Башкортостан","Салимгареева Галия Фагимовна","Салимгареева Галия Фагимовна",74,"призер"]
[17,"Россия, Свердловская область","Емельянова Элина Сафархановна",10,"МБОУ \"Центр образования \"Наследие\" Свердловской области","Колосова Лилия Раузитовна","Колосова Лилия Раузитовна",74,"призер"]
[18,"РТ, Актанышский","Мирзагаянова Эльвина Марселевна",10,"МБОУ «Актанышская средняя общеобразовательная школа №2 с углубленным изучением отдельных предметов» Актанышского муниципального района Республики Татарстан","Белоусова Мавлида Идрисовна","Исламова Лилия Талгатовна",73,"призер"]
[19,"Оренбургская область","Аитов Риналь Рафаилевич",10,"МБОУ \"Тат. Каргалинская средняя общеобразовательная школа\" Сакмарского района Оренбургской области","Рафикова Резеда Шамилевна","Рафикова Резеда Шамилевна",70,"призер"]
[20,"Россия, республика Башкортостан","Мусагитова Лейсан Фанисовна",10,"ГБОУ Республиканский инженерный лицей-интернат г. Уфа Республики Башкортостан","Якупова Фаима Галиевна","Якупова Фаима Галиевна",70,"призер"]
[21,"Россия, Республика Коми ","Шарапова Лиана Сергеевна",10,"ГПОУ \"Гимназия искусств при Главе Республики Коми\" имени Ю.А.Спиридонова ","Нефедова Светлана Михайловна","Чегесова Ольга Олеговна",70,"призер"]
[22,"Азербайджан","Алиева Марьям Джалиль",10,"Средней школы № 175 имени Ази Асланова города Баку Азербайджана","Инара Амельевна","Алиева Сабина Бениаминовна",69,"призер"]
[23,"Россия, Оренбургская область","Шайдулина Диана Васимовна",10,"МБОУ \"Асекеевская средняя общеобразовательная  школа\" Асекеевского района  Оренбургской области","Лотфуллина Энзе Раиловна","Лотфуллина Энзе Раиловна",68,"призер"]
[24,"Россия. Оренбургская область","Ермолаева Юлия Алексеевна",10,"МБОУ \"Покровский лицей\" Оренбургской области","Сираева Диляра Минигариевна","Башкатова Антонина Семеновна",67,"призер"]
[25,"Республика Башкортостан","Ямалов Динар Данилович",10,"МБОУ средняя общеобразовательная школа села Асяново имени Шайхзады Бабича муниципального района Дюртюлинский район Республики Башкортостан","Салимгареева Галия Фагимовна","Салимгареева Галия Фагимовна",65,"призер"]
[26,"Республика Башкортостан","Юсупова Айгиза Харисовна",10,"МБОУ средняя общеобразовательная школа села Асяново имени Шайхзады Бабича муниципального района Дюртюлинский район Республики Башкортостан","Салимгареева Галия Фагимовна","Салимгареева Галия Фагимовна",64,"призер"]
[27,"Россия, Оренбургская область","Мухарямова Регина Фатыховна",10,"МБОУ Озерская средняя общеобразовательная школа Илекского района Оренбургской области","Назметдинова Светлана Валерьевна","Назметдинова Элина Рафхатовна",63,"призер"]
[28,"Казахстан, Павлодар","Мұқатай Нұрханым",10,"ГУ \"Средняя общеобразовательная школа № 19 города Павлодара\" Казахстана","Мейрханова Айслу Омирзановна","Иванова Венера Альфредовна",63,"призер"]
[29,"Россия, Республика Башкортостан","Латыпова Регина Руслановна",10,"МБОУ \"Татарская гимназия №65\" городского округа город Уфа Республики Башкортостан","Гарифуллина Динара Зуфаровна","Гарифуллина Динара Зуфаровна",62,"призер"]
[30,"Россия, Республика Калмыкия","Эрдниева Элистина Алексеевна",10,"МОБУ \"Троицкая гимназия имени Б.Б.Городовикова\" Целинного района Республики Калмыкия","Баланкаева Галина Улановна","Баланкаева Галина Улановна",62,"призер"]
[31,"Россия, Республика Коми ","Бутырева Лидия Анатольевна",10,"ГПОУ \"Гимназия искусств при Главе Республики Коми\" имени Ю.А.Спиридонова ","Нефедова Светлана Михайловна","Чегесова Ольга Олеговна",61,"призер"]
[32,"Казахстан, Павлодар","Қақабай Әмина",10,"ГУ \"Средняя общеобразовательная школа № 19 города Павлодара\" Казахстана","Мейрханова Айслу Омирзановна","Иванова Венера Альфредовна",61,"призер"]
[33,"Россия,Ульяновская область","Курмаева Анжела Радиковна",10,"МБОО - Старокулаткинская средняя школа №2 имени Героя Российской Федерации Ряфагатя Махмутовича Хабибуллина Ульяновской области","Алтынбаева Зульфия Рушановна","Файзуллина Хамдия Рашитовна",59,"призер"]
[34,"Россия, Республика Саха (Якутия)","Соломонова Амелия Аркадьевна ",10,"ГБНОУ Республики Саха (Якутия) \"Республиканский лицей - интернат\"","Зоя Петровна","Соломонова Просковья Михайловна",59,"призер"]
[35,"Россия,Ульяновская область","Хабиев Султан Русланович",10,"МБОО - Старокулаткинская средняя школа №2 имени Героя Российской Федерации Ряфагатя Махмутовича Хабибуллина Ульяновской области","Алтынбаева Зульфия Рушановна","Файзуллина Хамдия Рашитовна",58]
[36,"Россия, Чувашская республика","Ибетова Дина Амировна",10,"МБОУ \"Долгоостровская средняя общеобразовательная школа\" Чувашской Республики","Черепова Гелсиня Зайдулловна","Черепова Гелсиня Зайдулловна",57]
[37,"Россия Омская область","Итенякова Луиза Рафиковна",10,"МБОУ \"Уленкульская средняя общеобразовательная школа имени Героя Советского Союза Мусы Джалиля\" Омской области","Гумарова Лейля Мусеевна","Гумарова Лейля Мусеевна",57,"победитель в номинации \"Лингвистическое чутье\""]
[38,"Россия,Ульяновская область","Разакова Алсу Иршатовна",10,"МБОО - Старокулаткинская средняя школа №2 имени Героя Российской Федерации Ряфагатя Махмутовича Хабибуллина Ульяновской области","Алтынбаева Зульфия Рушановна","Файзуллина Хамдия Рашитовна",57]
[39,"Россия, Республика Башкортостан","Харисова Аделина Тимуровна",10,"МБОУ \"Татарская гимназия №65\" городского округа город Уфа Республики Башкортостан","Гарифуллина Динара Зуфаровна","Гарифуллина Динара Зуфаровна",57]
[40,"Россия, Республика Башкортостан","Шарафутдинова Камила Ирековна",10,"МБОУ \"Татарская гимназия №65\" городского округа город Уфа Республики Башкортостан","Гарифуллина Динара Зуфаровна","Гарифуллина Динара Зуфаровна",57]
[48,"Россия Ставропольский край","Абдуллаев Рафик Русланович",10,"МКОУ средняя общеобразовательная школа № 16 аул Малый Барханчак Ипатовского района Ставропольского края","Ромаева Ильзира Нурмухаметовна","Абдуллаева Гюзель Абдулкадыровна",56,"Победитель в номинации \"Познание и творчество\""]
[41,"Россия, Республика Башкортостан","Седелков Александр Евгеньевич",10,"МБОУ \"Татарская гимназия №65\" городского округа город Уфа Республики Башкортостан","Гарифуллина Динара Зуфаровна","Гарифуллина Динара Зуфаровна",56]
[42,"Россия, Тюменская область ","Алеева Луиза Ильдаровна",10,"МАОУ Андреевская средняя общеобразовательная школа Тюменского муниципального района","Ижбулаева Гульшат Рависовна","Губайдуллина Рузанна Альбертовна",55]
[43,"Россия Омская область","Мухаметшин Айдар Газизович",10,"МБОУ \"Уленкульская средняя общеобразовательная школа имени Героя Советского Союза Мусы Джалиля\"","Гумарова Лейля Мусеевна","Гумарова Лейля Мусеевна",55]
[44,"Россия, Оренбургская область","Зулхузина Алсу Рахимовна",10,"МБОУ Озерская средняя общеобразовательная школа Илекского района Оренбургской области","Назметдинова Светлана Валерьевна","Назметдинова Элина Рафхатовна",54]
[45,"Россия Оренбургская область","Нигматуллина Алина Фагимовна",10,"МБОУ \"Новосултангуловская средняя общеобразовательная школа\" \"Асекеевский район\" Оренбургской области","Хафизова Замира Шахмановна","Рафикова Резеда Шамилевна",54]
[46,"Россия, республика Башкортостан","Кадырова Яна Ильдаровна",10,"ГБОУ Республиканский инженерный лицей-интернат г. Уфа Республики Башкортостан","Якупова Фаима Галиевна","Якупова Фаима Галиевна",53]
[47,"Россия Омская область","Давлетбагина Зарина Газизовна",10,"МБОУ \"Уленкульская средняя общеобразовательная школа имени Героя Советского Союза Мусы Джалиля\" Омской области","Гумарова Лейля Мусеевна","Гумарова Лейля Мусеевна",52]
[49,"Россия, республика Башкортостан","Мухамадиева Лилия Рамилевна",10,"ГБОУ Республиканский инженерный лицей-интернат г. Уфа Республики Башкортостан","Якупова Фаима Галиевна","Якупова Фаима Галиевна",51]
[50,"Россия, Республика Башкортостан","Фазлыева Афина Марселевна",10,"МБОУ \"Татарская гимназия №65\" городского округа город Уфа Республики Башкортостан","Гарифуллина Динара Зуфаровна","Гарифуллина Динара Зуфаровна",51]
[51,"РФ, Нижегородская область","Каримова Гульназ Вильмировна",10,"МОУ Красногорская средняя школа Нижегородской области","Исхакова Альфия Харисовна","Исхакова Альфия Харисовна",50]
[52,"Узбекистан, Хорезмская область","Эгамберганов Бабурбек Атабек угли",10,"Ургенчского строительно профессионального колледжа Хорезмской области Узбекистана",null,"Бекберганов Сабирджан Баходир угли",50,"Победитель в номинации \"Звучащее слово\""]
[53,"Россия, Республика Башкортостан","Сагидуллин Радмир Данилевич",10,"МБОУ \"Татарская гимназия №65\" городского округа город Уфа Республики Башкортостан","Гарифуллина Динара Зуфаровна","Гарифуллина Динара Зуфаровна",49]
[54,"Казахстан, Павлодар","Сейтканова Дильназ Акыловна",10,"ГУ \"Средняя общеобразовательная школа № 19 города Павлодара\" Казахстана","Шарипова Кымбат Женисовна","Иванова Венера Альфредовна",49]
[55,"РФ, Нижегородская область","Сямиуллина Ляйля Вафиновна",10,"МОУ Красногорская средняя школа Нижегородской области","Исхакова Альфия Харисовна","Исхакова Альфия Харисовна",49,"Победитель в номинации \"Звучащее слово\""]
[56,"Узбекистан","Шарапова Ангелина Зокировна",10,"Школа №21 города Бухары Узбекистана","Доценко Светлана Николаевна","Шарапова Елена Анваровна",49,"Победитель в номинации \"Познание и творчество\""]
[57,"РФ Пермский край","Акзигитова Гульназ Арсеновна",10,"МАОУ \"Березниковская средняя общеобразовательная школа имени М.Г.Имашева\" Бардымского района Пермского края","Баширова Альфия Ильдаровна","Муратова Айсылу Нагимовна",48]
[58,"Россия, Свердловская область","Горяева Виолетта Михайловна",10,"МБОУ \"Центр образования \"Наследие\" Свердловской области","Колосова Лилия Раузитовна","Колосова Лилия Раузитовна",47,"победитель в номинации \"Лингвистическое чутье\""]
[59,"Чувашская Республика","Егорова Ксения Анатольевна",10,"МБОУ \"Сугутская средняя общеобразовательная школа\" Батыревского района Чувашской Республики","Губайдуллина Ильсеяр Ленаровна","Губайдуллина Ильсеяр Ленаровна",47]
[60,"Чувашская Республика","Скрипкина Анастасия Александровна",10,"МБОУ \"Сугутская средняя общеобразовательная школа\" Батыревского района Чувашской Республики","Губайдуллина Ильсеяр Ленаровна","Губайдуллина Ильсеяр Ленаровна",47]
[61,"Казахстан, Павлодар","Шарипова Дильназ Ардаковна",10,"ГУ \"Средняя общеобразовательная школа № 19 города Павлодара\" Казахстана","Шарипова Кымбат Женисовна","Иванова Венера Альфредовна",47]
[62,"Россия,Ульяновская область","Алиева Алсу Дамировна",10,"МБОО - Старокулаткинская средняя школа №2 имени Героя Российской Федерации Ряфагатя Махмутовича Хабибуллина Ульяновской области","Алтынбаева Зульфия Рушановна","Файзуллина Хамдия Рашитовна",45]
[63,"Кировская область","Зайнуллин Расим Ришатович",10,"МКОУ средняя общеобразовательная школа с.Старый Ирюк Малмыжского района Кировской области","Набиуллина Лилия Рафиловна","Зайнуллина Розалия Миняхатовна",45]
[64,"Россия,Ульяновская область","Баширова Ляйсан Мавлетовна",10,"МБОО - Старокулаткинская средняя школа №2 имени Героя Российской Федерации Ряфагатя Махмутовича Хабибуллина Ульяновской области","Алтынбаева Зульфия Рушановна","Файзуллина Хамдия Рашитовна",43]
[65,"Россия, Республика Башкортостан","Гизатуллина Азалия Рамилевна",10,"МБОУ \"Татарская гимназия №65\" городского округа город Уфа Республики Башкортостан","Гарифуллина Динара Зуфаровна","Гарифуллина Динара Зуфаровна",42]
[66,"Россия, Тюменская область","Таймасова Мадина Рустамовна",10,"МАОУ Ембаевская средняя общеобразовательная школа имени А. Аширбекова Тюменской области","Плохотниченко Лилия Леонидовна","Губайдуллина Рузанна Альбертовна",41]
[67,"РФ, Нижегородская область","Ахатов Илнур Рафаильевич",10,"МОУ Красногорская средняя школа Нижегородской области","Исхакова Альфия Харисовна","Исхакова Альфия Харисовна",40]
[68,"Россия, Оренбургская область","Сайфутдинова Руфина Руслановна",10,"МБОУ Озерская средняя общеобразовательная школа Илекского района Оренбургской области","Назметдинова Светлана Валерьевна","Назметдинова Элина Рафхатовна",38]
[69,"Самара","Таджитдинов Камиль Шавкатович",10,"МБОУ \"Школа \"Яктылык\" с углубленным изучением отдельных предметов\" городского округа Самара","Махмутова Гульджахан Хайдаровна","Гатауллина Юлия Ринатовна",37]
[70,"Россия,Ульяновская область","Джамаева Диляра Ринатовна",10,"МБОО - Старокулаткинская средняя школа №2 имени Героя Российской Федерации Ряфагатя Махмутовича Хабибуллина Ульяновской области","Алтынбаева Зульфия Рушановна","Файзуллина Хамдия Рашитовна",34]
[71,"Россия,Ульяновская область","Сайфуллина Альбина Рамилевна",10,"МБОО - Старокулаткинская средняя школа №2 имени Героя Российской Федерации Ряфагатя Махмутовича Хабибуллина Ульяновской области","Алтынбаева Зульфия Рушановна","Файзуллина Хамдия Рашитовна",26]
[72,"Россия, Тюменская область","Мавлюшева Алина Рустамовна ",10,"МАОУ Ембаевская средняя общеобразовательная школа имени А. Аширбекова Тюменской области","Плохотниченко Лилия Леонидовна","Губайдуллина Рузанна Альбертовна",25]
[]
[null,"Председатель жюри: Юсупова З.Ф."]
[null,"Члены жюри: ","Закирова Р.Ю."]
[null,null,"Корнеева Т.А."]
[null,null,"Новак М.О."]
[null,null,"Нуруллина Г.М."]
[null,null,"Мардиева Л.А."]
[null,null,"Рахимова Д.И."]
[null,null,"Щуклина Т.Ю."]